Workbook

Sheet LFCR Calc
A1: Montana-Dakota Utilities Co.
A2: Electric Utility - South Dakota
A3: 2018 Avoided Cost Rate Update
A4: Levelized Fixed Charge Rate - CT
C7: (1) | D7: (2) | E7: (3) | F7: (4) | G7: (5) | H7: (6) | I7: (7) | J7: (8) | K7: (9) | L7: (10) | N7: (11) | O7: (12)
I8: Present | K8: Accum. | N8: Tax | O8: Deferred
C9: Net | E9: Book | G9: Ad Valorem | H9: Total | I9: Value | J9: Present | K9: Present | N9: Depr. | O9: Income | P9: Acc.
B10: Year | C10: Investment | D10: Return | E10: Depr. | F10: O&M | G10: Tax | H10: Charge | I10: Factor | J10: Value | K10: Value | L10: LFCR | N10: Accel. | O10: Tax | P10: DIT
A11: 1 | B11: =IF('LFCR Calc'!$G$92>=A11,A11," ") -> 1 | C11: 1 | D11: =+IF('LFCR Calc'!$G$92>='LFCR Calc'!A11,'LFCR Calc'!$G$85," ") -> 0.09713 | E11: =+IF('LFCR Calc'!$G$92>='LFCR Calc'!A11, ((100/'LFCR Calc'!$G$92)/100),"") -> 0.025 | F11: 0 | G11: =+IF('LFCR Calc'!$G$92>='LFCR Calc'!A11,'LFCR Calc'!$G$94," ") -> 0.00363 | H11: 0 | I11: =+IF('LFCR Calc'!$G$92>='LFCR Calc'!A11,(1/((1+'LFCR Calc'!$G$84)^'LFCR Calc'!B11))," ") -> 0.9326966124 | J11: =+IF('LFCR Calc'!$G$92>='LFCR Calc'!A11,'LFCR Calc'!H11*'LFCR Calc'!I11," ") -> 0 | K11: =+IF('LFCR Calc'!$G$92>='LFCR Calc'!A11,'LFCR Calc'!J11," ") -> 0 | L11: =+IF('LFCR Calc'!$G$92>='LFCR Calc'!A11,'LFCR Calc'!K11*'LFCR Calc'!$G$84*(1+'LFCR Calc'!$G$84)^'LFCR Calc'!B11/((1+'LFCR Calc'!$G$84)^'LFCR Calc'!B11-1)," ") -> 0 | N11: =+IF('LFCR Calc'!$G$92>='LFCR Calc'!A11,'Depreciation Table'!E7," ") -> 0.05 | O11: =+IF('LFCR Calc'!$G$92>='LFCR Calc'!A11,(('LFCR Calc'!N11-'LFCR Calc'!E11)*('LFCR Calc'!$G$89))," ") -> 0.00875 | P11: =IF(+'LFCR Calc'!$G$92>'LFCR Calc'!A11,+'LFCR Calc'!O11,"") -> 0.00875
A12: 2 | B12: =IF('LFCR Calc'!$G$92>=A12,A12," ") -> 2 | C12: =+IF('LFCR Calc'!$G$92>='LFCR Calc'!A12,('LFCR Calc'!C11-'LFCR Calc'!E11-'LFCR Calc'!O11)," ") -> 0.96625 | D12: =+IF('LFCR Calc'!$G$92>='LFCR Calc'!A12,'LFCR Calc'!$G$85*C12," ") -> 0.0938518625 | E12: =+IF('LFCR Calc'!$G$92>='LFCR Calc'!A12, ((100/'LFCR Calc'!$G$92)/100),"") -> 0.025 | F12: 0 | G12: =+IF('LFCR Calc'!$G$92>='LFCR Calc'!A12,'LFCR Calc'!$G$94," ") -> 0.00363 | H12: 0 | I12: =+IF('LFCR Calc'!$G$92>='LFCR Calc'!A12,(1/((1+'LFCR Calc'!$G$84)^'LFCR Calc'!B12))," ") -> 0.8699229709 | J12: =+IF('LFCR Calc'!$G$92>='LFCR Calc'!A12,'LFCR Calc'!H12*'LFCR Calc'!I12," ") -> 0 | K12: =+IF('LFCR Calc'!$G$92>='LFCR Calc'!A12,'LFCR Calc'!K11+'LFCR Calc'!J12," ") -> 0 | L12: =+IF('LFCR Calc'!$G$92>='LFCR Calc'!A12,'LFCR Calc'!K12*'LFCR Calc'!$G$84*(1+'LFCR Calc'!$G$84)^'LFCR Calc'!B12/((1+'LFCR Calc'!$G$84)^'LFCR Calc'!B12-1)," ") -> 0 | N12: =+IF('LFCR Calc'!$G$92>='LFCR Calc'!A12,'Depreciation Table'!E8," ") -> 0.095 | O12: =+IF('LFCR Calc'!$G$92>='LFCR Calc'!A12,(('LFCR Calc'!N12-'LFCR Calc'!E13)*('LFCR Calc'!$G$89))," ") -> 0.0245 | P12: =IF(+'LFCR Calc'!$G$92>='LFCR Calc'!A12,+'LFCR Calc'!O12+P11,"") -> 0.03325
A13: 3 | B13: =IF('LFCR Calc'!$G$92>=A13,A13," ") -> 3 | C13: =+IF('LFCR Calc'!$G$92>='LFCR Calc'!A13,('LFCR Calc'!C12-'LFCR Calc'!E12-'LFCR Calc'!O12)," ") -> 0.91675 | D13: =+IF('LFCR Calc'!$G$92>='LFCR Calc'!A13,'LFCR Calc'!$G$85*C13," ") -> 0.0890439275 | E13: =+IF('LFCR Calc'!$G$92>='LFCR Calc'!A13, ((100/'LFCR Calc'!$G$92)/100),"") -> 0.025 | F13: 0 | G13: =+IF('LFCR Calc'!$G$92>='LFCR Calc'!A13,'LFCR Calc'!$G$94," ") -> 0.00363 | H13: 0 | I13: =+IF('LFCR Calc'!$G$92>='LFCR Calc'!A13,(1/((1+'LFCR Calc'!$G$84)^'LFCR Calc'!B13))," ") -> 0.811374208 | J13: =+IF('LFCR Calc'!$G$92>='LFCR Calc'!A13,'LFCR Calc'!H13*'LFCR Calc'!I13," ") -> 0 | K13: =+IF('LFCR Calc'!$G$92>='LFCR Calc'!A13,'LFCR Calc'!K12+'LFCR Calc'!J13," ") -> 0 | L13: =+IF('LFCR Calc'!$G$92>='LFCR Calc'!A13,'LFCR Calc'!K13*'LFCR Calc'!$G$84*(1+'LFCR Calc'!$G$84)^'LFCR Calc'!B13/((1+'LFCR Calc'!$G$84)^'LFCR Calc'!B13-1)," ") -> 0 | N13: =+IF('LFCR Calc'!$G$92>='LFCR Calc'!A13,'Depreciation Table'!E9," ") -> 0.0855 | O13: =+IF('LFCR Calc'!$G$92>='LFCR Calc'!A13,(('LFCR Calc'!N13-'LFCR Calc'!E14)*('LFCR Calc'!$G$89))," ") -> 0.021175 | P13: =IF(+'LFCR Calc'!$G$92>='LFCR Calc'!A13,+'LFCR Calc'!O13+P12,"") -> 0.054425
A14: 4 | B14: =IF('LFCR Calc'!$G$92>=A14,A14," ") -> 4 | C14: =+IF('LFCR Calc'!$G$92>='LFCR Calc'!A14,('LFCR Calc'!C13-'LFCR Calc'!E13-'LFCR Calc'!O13)," ") -> 0.870575 | D14: =+IF('LFCR Calc'!$G$92>='LFCR Calc'!A14,'LFCR Calc'!$G$85*C14," ") -> 0.08455894975 | E14: =+IF('LFCR Calc'!$G$92>='LFCR Calc'!A14, ((100/'LFCR Calc'!$G$92)/100),"") -> 0.025 | F14: 0 | G14: =+IF('LFCR Calc'!$G$92>='LFCR Calc'!A14,'LFCR Calc'!$G$94," ") -> 0.00363 | H14: 0 | I14: =+IF('LFCR Calc'!$G$92>='LFCR Calc'!A14,(1/((1+'LFCR Calc'!$G$84)^'LFCR Calc'!B14))," ") -> 0.7567659752 | J14: =+IF('LFCR Calc'!$G$92>='LFCR Calc'!A14,'LFCR Calc'!H14*'LFCR Calc'!I14," ") -> 0 | K14: =+IF('LFCR Calc'!$G$92>='LFCR Calc'!A14,'LFCR Calc'!K13+'LFCR Calc'!J14," ") -> 0 | L14: =+IF('LFCR Calc'!$G$92>='LFCR Calc'!A14,'LFCR Calc'!K14*'LFCR Calc'!$G$84*(1+'LFCR Calc'!$G$84)^'LFCR Calc'!B14/((1+'LFCR Calc'!$G$84)^'LFCR Calc'!B14-1)," ") -> 0 | N14: =+IF('LFCR Calc'!$G$92>='LFCR Calc'!A14,'Depreciation Table'!E10," ") -> 0.077 | O14: =+IF('LFCR Calc'!$G$92>='LFCR Calc'!A14,(('LFCR Calc'!N14-'LFCR Calc'!E14)*('LFCR Calc'!$G$89))," ") -> 0.0182 | P14: =IF(+'LFCR Calc'!$G$92>='LFCR Calc'!A14,+'LFCR Calc'!O14+P13,"") -> 0.072625
A15: 5 | B15: =IF('LFCR Calc'!$G$92>=A15,A15," ") -> 5 | C15: =+IF('LFCR Calc'!$G$92>='LFCR Calc'!A15,('LFCR Calc'!C14-'LFCR Calc'!E14-'LFCR Calc'!O14)," ") -> 0.827375 | D15: =+IF('LFCR Calc'!$G$92>='LFCR Calc'!A15,'LFCR Calc'!$G$85*C15," ") -> 0.08036293375 | E15: =+IF('LFCR Calc'!$G$92>='LFCR Calc'!A15, ((100/'LFCR Calc'!$G$92)/100),"") -> 0.025 | F15: 0 | G15: =+IF('LFCR Calc'!$G$92>='LFCR Calc'!A15,'LFCR Calc'!$G$94," ") -> 0.00363 | H15: 0 | I15: =+IF('LFCR Calc'!$G$92>='LFCR Calc'!A15,(1/((1+'LFCR Calc'!$G$84)^'LFCR Calc'!B15))," ") -> 0.7058330615 | J15: =+IF('LFCR Calc'!$G$92>='LFCR Calc'!A15,'LFCR Calc'!H15*'LFCR Calc'!I15," ") -> 0 | K15: =+IF('LFCR Calc'!$G$92>='LFCR Calc'!A15,'LFCR Calc'!K14+'LFCR Calc'!J15," ") -> 0 | L15: =+IF('LFCR Calc'!$G$92>='LFCR Calc'!A15,'LFCR Calc'!K15*'LFCR Calc'!$G$84*(1+'LFCR Calc'!$G$84)^'LFCR Calc'!B15/((1+'LFCR Calc'!$G$84)^'LFCR Calc'!B15-1)," ") -> 0 | N15: =+IF('LFCR Calc'!$G$92>='LFCR Calc'!A15,'Depreciation Table'!E11," ") -> 0.0693 | O15: =+IF('LFCR Calc'!$G$92>='LFCR Calc'!A15,(('LFCR Calc'!N15-'LFCR Calc'!E15)*('LFCR Calc'!$G$89))," ") -> 0.015505 | P15: =IF(+'LFCR Calc'!$G$92>='LFCR Calc'!A15,+'LFCR Calc'!O15+P14,"") -> 0.08813
A16: 6 | B16: =IF('LFCR Calc'!$G$92>=A16,A16," ") -> 6 | C16: =+IF('LFCR Calc'!$G$92>='LFCR Calc'!A16,('LFCR Calc'!C15-'LFCR Calc'!E15-'LFCR Calc'!O15)," ") -> 0.78687 | D16: =+IF('LFCR Calc'!$G$92>='LFCR Calc'!A16,'LFCR Calc'!$G$85*C16," ") -> 0.0764286831 | E16: =+IF('LFCR Calc'!$G$92>='LFCR Calc'!A16, ((100/'LFCR Calc'!$G$92)/100),"") -> 0.025 | F16: 0 | G16: =+IF('LFCR Calc'!$G$92>='LFCR Calc'!A16,'LFCR Calc'!$G$94," ") -> 0.00363 | H16: 0 | I16: =+IF('LFCR Calc'!$G$92>='LFCR Calc'!A16,(1/((1+'LFCR Calc'!$G$84)^'LFCR Calc'!B16))," ") -> 0.6583281054 | J16: =+IF('LFCR Calc'!$G$92>='LFCR Calc'!A16,'LFCR Calc'!H16*'LFCR Calc'!I16," ") -> 0 | K16: =+IF('LFCR Calc'!$G$92>='LFCR Calc'!A16,'LFCR Calc'!K15+'LFCR Calc'!J16," ") -> 0 | L16: =+IF('LFCR Calc'!$G$92>='LFCR Calc'!A16,'LFCR Calc'!K16*'LFCR Calc'!$G$84*(1+'LFCR Calc'!$G$84)^'LFCR Calc'!B16/((1+'LFCR Calc'!$G$84)^'LFCR Calc'!B16-1)," ") -> 0 | N16: =+IF('LFCR Calc'!$G$92>='LFCR Calc'!A16,'Depreciation Table'!E12," ") -> 0.0623 | O16: =+IF('LFCR Calc'!$G$92>='LFCR Calc'!A16,(('LFCR Calc'!N16-'LFCR Calc'!E16)*('LFCR Calc'!$G$89))," ") -> 0.013055 | P16: =IF(+'LFCR Calc'!$G$92>='LFCR Calc'!A16,+'LFCR Calc'!O16+P15,"") -> 0.101185
A17: 7 | B17: =IF('LFCR Calc'!$G$92>=A17,A17," ") -> 7 | C17: =+IF('LFCR Calc'!$G$92>='LFCR Calc'!A17,('LFCR Calc'!C16-'LFCR Calc'!E16-'LFCR Calc'!O16)," ") -> 0.748815 | D17: =+IF('LFCR Calc'!$G$92>='LFCR Calc'!A17,'LFCR Calc'!$G$85*C17," ") -> 0.07273240095 | E17: =+IF('LFCR Calc'!$G$92>='LFCR Calc'!A17, ((100/'LFCR Calc'!$G$92)/100),"") -> 0.025 | F17: 0 | G17: =+IF('LFCR Calc'!$G$92>='LFCR Calc'!A17,'LFCR Calc'!$G$94," ") -> 0.00363 | H17: =+IF('LFCR Calc'!$G$92>='LFCR Calc'!A17,(+D17+E17+F17+G17)," ") -> 0.1013624009 | I17: =+IF('LFCR Calc'!$G$92>='LFCR Calc'!A17,(1/((1+'LFCR Calc'!$G$84)^'LFCR Calc'!B17))," ") -> 0.6140203938 | J17: =+IF('LFCR Calc'!$G$92>='LFCR Calc'!A17,'LFCR Calc'!H17*'LFCR Calc'!I17," ") -> 0.06223858135 | K17: =+IF('LFCR Calc'!$G$92>='LFCR Calc'!A17,'LFCR Calc'!K16+'LFCR Calc'!J17," ") -> 0.06223858135 | L17: =+IF('LFCR Calc'!$G$92>='LFCR Calc'!A17,'LFCR Calc'!K17*'LFCR Calc'!$G$84*(1+'LFCR Calc'!$G$84)^'LFCR Calc'!B17/((1+'LFCR Calc'!$G$84)^'LFCR Calc'!B17-1)," ") -> 0.01163568219 | N17: =+IF('LFCR Calc'!$G$92>='LFCR Calc'!A17,'Depreciation Table'!E13," ") -> 0.059 | O17: =+IF('LFCR Calc'!$G$92>='LFCR Calc'!A17,(('LFCR Calc'!N17-'LFCR Calc'!E17)*('LFCR Calc'!$G$89))," ") -> 0.0119 | P17: =IF(+'LFCR Calc'!$G$92>='LFCR Calc'!A17,+'LFCR Calc'!O17+P16,"") -> 0.113085
A18: 8 | B18: =IF('LFCR Calc'!$G$92>=A18,A18," ") -> 8 | C18: =+IF('LFCR Calc'!$G$92>='LFCR Calc'!A18,('LFCR Calc'!C17-'LFCR Calc'!E17-'LFCR Calc'!O17)," ") -> 0.711915 | D18: =+IF('LFCR Calc'!$G$92>='LFCR Calc'!A18,'LFCR Calc'!$G$85*C18," ") -> 0.06914830395 | E18: =+IF('LFCR Calc'!$G$92>='LFCR Calc'!A18, ((100/'LFCR Calc'!$G$92)/100),"") -> 0.025 | F18: 0 | G18: =+IF('LFCR Calc'!$G$92>='LFCR Calc'!A18,'LFCR Calc'!$G$94," ") -> 0.00363 | H18: =+IF('LFCR Calc'!$G$92>='LFCR Calc'!A18,(+D18+E18+F18+G18)," ") -> 0.09777830395 | I18: =+IF('LFCR Calc'!$G$92>='LFCR Calc'!A18,(1/((1+'LFCR Calc'!$G$84)^'LFCR Calc'!B18))," ") -> 0.5726947413 | J18: =+IF('LFCR Calc'!$G$92>='LFCR Calc'!A18,'LFCR Calc'!H18*'LFCR Calc'!I18," ") -> 0.05599712048 | K18: =+IF('LFCR Calc'!$G$92>='LFCR Calc'!A18,'LFCR Calc'!K17+'LFCR Calc'!J18," ") -> 0.1182357018 | L18: =+IF('LFCR Calc'!$G$92>='LFCR Calc'!A18,'LFCR Calc'!K18*'LFCR Calc'!$G$84*(1+'LFCR Calc'!$G$84)^'LFCR Calc'!B18/((1+'LFCR Calc'!$G$84)^'LFCR Calc'!B18-1)," ") -> 0.01996672887 | N18: =+IF('LFCR Calc'!$G$92>='LFCR Calc'!A18,'Depreciation Table'!E14," ") -> 0.059 | O18: =+IF('LFCR Calc'!$G$92>='LFCR Calc'!A18,(('LFCR Calc'!N18-'LFCR Calc'!E18)*('LFCR Calc'!$G$89))," ") -> 0.0119 | P18: =IF(+'LFCR Calc'!$G$92>='LFCR Calc'!A18,+'LFCR Calc'!O18+P17,"") -> 0.124985
A19: 9 | B19: =IF('LFCR Calc'!$G$92>=A19,A19," ") -> 9 | C19: =+IF('LFCR Calc'!$G$92>='LFCR Calc'!A19,('LFCR Calc'!C18-'LFCR Calc'!E18-'LFCR Calc'!O18)," ") -> 0.675015 | D19: =+IF('LFCR Calc'!$G$92>='LFCR Calc'!A19,'LFCR Calc'!$G$85*C19," ") -> 0.06556420695 | E19: =+IF('LFCR Calc'!$G$92>='LFCR Calc'!A19, ((100/'LFCR Calc'!$G$92)/100),"") -> 0.025 | F19: 0 | G19: =+IF('LFCR Calc'!$G$92>='LFCR Calc'!A19,'LFCR Calc'!$G$94," ") -> 0.00363 | H19: =+IF('LFCR Calc'!$G$92>='LFCR Calc'!A19,(+D19+E19+F19+G19)," ") -> 0.09419420695 | I19: =+IF('LFCR Calc'!$G$92>='LFCR Calc'!A19,(1/((1+'LFCR Calc'!$G$84)^'LFCR Calc'!B19))," ") -> 0.5341504452 | J19: =+IF('LFCR Calc'!$G$92>='LFCR Calc'!A19,'LFCR Calc'!H19*'LFCR Calc'!I19," ") -> 0.05031387757 | K19: =+IF('LFCR Calc'!$G$92>='LFCR Calc'!A19,'LFCR Calc'!K18+'LFCR Calc'!J19," ") -> 0.1685495794 | L19: =+IF('LFCR Calc'!$G$92>='LFCR Calc'!A19,'LFCR Calc'!K19*'LFCR Calc'!$G$84*(1+'LFCR Calc'!$G$84)^'LFCR Calc'!B19/((1+'LFCR Calc'!$G$84)^'LFCR Calc'!B19-1)," ") -> 0.0261082951 | N19: =+IF('LFCR Calc'!$G$92>='LFCR Calc'!A19,'Depreciation Table'!E15," ") -> 0.0591 | O19: =+IF('LFCR Calc'!$G$92>='LFCR Calc'!A19,(('LFCR Calc'!N19-'LFCR Calc'!E19)*('LFCR Calc'!$G$89))," ") -> 0.011935 | P19: =IF(+'LFCR Calc'!$G$92>='LFCR Calc'!A19,+'LFCR Calc'!O19+P18,"") -> 0.13692
A20: 10 | B20: =IF('LFCR Calc'!$G$92>=A20,A20," ") -> 10 | C20: =+IF('LFCR Calc'!$G$92>='LFCR Calc'!A20,('LFCR Calc'!C19-'LFCR Calc'!E19-'LFCR Calc'!O19)," ") -> 0.63808 | D20: =+IF('LFCR Calc'!$G$92>='LFCR Calc'!A20,'LFCR Calc'!$G$85*C20," ") -> 0.0619767104 | E20: =+IF('LFCR Calc'!$G$92>='LFCR Calc'!A20, ((100/'LFCR Calc'!$G$92)/100),"") -> 0.025 | F20: 0 | G20: =+IF('LFCR Calc'!$G$92>='LFCR Calc'!A20,'LFCR Calc'!$G$94," ") -> 0.00363 | H20: =+IF('LFCR Calc'!$G$92>='LFCR Calc'!A20,(+D20+E20+F20+G20)," ") -> 0.0906067104 | I20: =+IF('LFCR Calc'!$G$92>='LFCR Calc'!A20,(1/((1+'LFCR Calc'!$G$84)^'LFCR Calc'!B20))," ") -> 0.4982003107 | J20: =+IF('LFCR Calc'!$G$92>='LFCR Calc'!A20,'LFCR Calc'!H20*'LFCR Calc'!I20," ") -> 0.04514029128 | K20: =+IF('LFCR Calc'!$G$92>='LFCR Calc'!A20,'LFCR Calc'!K19+'LFCR Calc'!J20," ") -> 0.2136898707 | L20: =+IF('LFCR Calc'!$G$92>='LFCR Calc'!A20,'LFCR Calc'!K20*'LFCR Calc'!$G$84*(1+'LFCR Calc'!$G$84)^'LFCR Calc'!B20/((1+'LFCR Calc'!$G$84)^'LFCR Calc'!B20-1)," ") -> 0.03072911642 | N20: =+IF('LFCR Calc'!$G$92>='LFCR Calc'!A20,'Depreciation Table'!E16," ") -> 0.059 | O20: =+IF('LFCR Calc'!$G$92>='LFCR Calc'!A20,(('LFCR Calc'!N20-'LFCR Calc'!E20)*('LFCR Calc'!$G$89))," ") -> 0.0119 | P20: =IF(+'LFCR Calc'!$G$92>='LFCR Calc'!A20,+'LFCR Calc'!O20+P19,"") -> 0.14882
A21: 11 | B21: =IF('LFCR Calc'!$G$92>=A21,A21," ") -> 11 | C21: =+IF('LFCR Calc'!$G$92>='LFCR Calc'!A21,('LFCR Calc'!C20-'LFCR Calc'!E20-'LFCR Calc'!O20)," ") -> 0.60118 | D21: =+IF('LFCR Calc'!$G$92>='LFCR Calc'!A21,'LFCR Calc'!$G$85*C21," ") -> 0.0583926134 | E21: =+IF('LFCR Calc'!$G$92>='LFCR Calc'!A21, ((100/'LFCR Calc'!$G$92)/100),"") -> 0.025 | F21: 0 | G21: =+IF('LFCR Calc'!$G$92>='LFCR Calc'!A21,'LFCR Calc'!$G$94," ") -> 0.00363 | H21: =+IF('LFCR Calc'!$G$92>='LFCR Calc'!A21,(+D21+E21+F21+G21)," ") -> 0.0870226134 | I21: =+IF('LFCR Calc'!$G$92>='LFCR Calc'!A21,(1/((1+'LFCR Calc'!$G$84)^'LFCR Calc'!B21))," ") -> 0.4646697421 | J21: =+IF('LFCR Calc'!$G$92>='LFCR Calc'!A21,'LFCR Calc'!H21*'LFCR Calc'!I21," ") -> 0.04043677533 | K21: =+IF('LFCR Calc'!$G$92>='LFCR Calc'!A21,'LFCR Calc'!K20+'LFCR Calc'!J21," ") -> 0.254126646 | L21: =+IF('LFCR Calc'!$G$92>='LFCR Calc'!A21,'LFCR Calc'!K21*'LFCR Calc'!$G$84*(1+'LFCR Calc'!$G$84)^'LFCR Calc'!B21/((1+'LFCR Calc'!$G$84)^'LFCR Calc'!B21-1)," ") -> 0.0342550762 | N21: =+IF('LFCR Calc'!$G$92>='LFCR Calc'!A21,'Depreciation Table'!E17," ") -> 0.0591 | O21: =+IF('LFCR Calc'!$G$92>='LFCR Calc'!A21,(('LFCR Calc'!N21-'LFCR Calc'!E21)*('LFCR Calc'!$G$89))," ") -> 0.011935 | P21: =IF(+'LFCR Calc'!$G$92>='LFCR Calc'!A21,+'LFCR Calc'!O21+P20,"") -> 0.160755
A22: 12 | B22: =IF('LFCR Calc'!$G$92>=A22,A22," ") -> 12 | C22: =+IF('LFCR Calc'!$G$92>='LFCR Calc'!A22,('LFCR Calc'!C21-'LFCR Calc'!E21-'LFCR Calc'!O21)," ") -> 0.564245 | D22: =+IF('LFCR Calc'!$G$92>='LFCR Calc'!A22,'LFCR Calc'!$G$85*C22," ") -> 0.05480511685 | E22: =+IF('LFCR Calc'!$G$92>='LFCR Calc'!A22, ((100/'LFCR Calc'!$G$92)/100),"") -> 0.025 | F22: 0 | G22: =+IF('LFCR Calc'!$G$92>='LFCR Calc'!A22,'LFCR Calc'!$G$94," ") -> 0.00363 | H22: =+IF('LFCR Calc'!$G$92>='LFCR Calc'!A22,(+D22+E22+F22+G22)," ") -> 0.08343511685 | I22: =+IF('LFCR Calc'!$G$92>='LFCR Calc'!A22,(1/((1+'LFCR Calc'!$G$84)^'LFCR Calc'!B22))," ") -> 0.4333958944 | J22: =+IF('LFCR Calc'!$G$92>='LFCR Calc'!A22,'LFCR Calc'!H22*'LFCR Calc'!I22," ") -> 0.03616043709 | K22: =+IF('LFCR Calc'!$G$92>='LFCR Calc'!A22,'LFCR Calc'!K21+'LFCR Calc'!J22," ") -> 0.2902870831 | L22: =+IF('LFCR Calc'!$G$92>='LFCR Calc'!A22,'LFCR Calc'!K22*'LFCR Calc'!$G$84*(1+'LFCR Calc'!$G$84)^'LFCR Calc'!B22/((1+'LFCR Calc'!$G$84)^'LFCR Calc'!B22-1)," ") -> 0.03696958019 | N22: =+IF('LFCR Calc'!$G$92>='LFCR Calc'!A22,'Depreciation Table'!E18," ") -> 0.059 | O22: =+IF('LFCR Calc'!$G$92>='LFCR Calc'!A22,(('LFCR Calc'!N22-'LFCR Calc'!E22)*('LFCR Calc'!$G$89))," ") -> 0.0119 | P22: =IF(+'LFCR Calc'!$G$92>='LFCR Calc'!A22,+'LFCR Calc'!O22+P21,"") -> 0.172655
A23: 13 | B23: =IF('LFCR Calc'!$G$92>=A23,A23," ") -> 13 | C23: =+IF('LFCR Calc'!$G$92>='LFCR Calc'!A23,('LFCR Calc'!C22-'LFCR Calc'!E22-'LFCR Calc'!O22)," ") -> 0.527345 | D23: =+IF('LFCR Calc'!$G$92>='LFCR Calc'!A23,'LFCR Calc'!$G$85*C23," ") -> 0.05122101985 | E23: =+IF('LFCR Calc'!$G$92>='LFCR Calc'!A23, ((100/'LFCR Calc'!$G$92)/100),"") -> 0.025 | F23: 0 | G23: =+IF('LFCR Calc'!$G$92>='LFCR Calc'!A23,'LFCR Calc'!$G$94," ") -> 0.00363 | H23: =+IF('LFCR Calc'!$G$92>='LFCR Calc'!A23,(+D23+E23+F23+G23)," ") -> 0.07985101985 | I23: =+IF('LFCR Calc'!$G$92>='LFCR Calc'!A23,(1/((1+'LFCR Calc'!$G$84)^'LFCR Calc'!B23))," ") -> 0.4042268826 | J23: =+IF('LFCR Calc'!$G$92>='LFCR Calc'!A23,'LFCR Calc'!H23*'LFCR Calc'!I23," ") -> 0.03227792882 | K23: =+IF('LFCR Calc'!$G$92>='LFCR Calc'!A23,'LFCR Calc'!K22+'LFCR Calc'!J23," ") -> 0.3225650119 | L23: =+IF('LFCR Calc'!$G$92>='LFCR Calc'!A23,'LFCR Calc'!K23*'LFCR Calc'!$G$84*(1+'LFCR Calc'!$G$84)^'LFCR Calc'!B23/((1+'LFCR Calc'!$G$84)^'LFCR Calc'!B23-1)," ") -> 0.0390690526 | N23: =+IF('LFCR Calc'!$G$92>='LFCR Calc'!A23,'Depreciation Table'!E19," ") -> 0.0591 | O23: =+IF('LFCR Calc'!$G$92>='LFCR Calc'!A23,(('LFCR Calc'!N23-'LFCR Calc'!E23)*('LFCR Calc'!$G$89))," ") -> 0.011935 | P23: =IF(+'LFCR Calc'!$G$92>='LFCR Calc'!A23,+'LFCR Calc'!O23+P22,"") -> 0.18459
A24: 14 | B24: =IF('LFCR Calc'!$G$92>=A24,A24," ") -> 14 | C24: =+IF('LFCR Calc'!$G$92>='LFCR Calc'!A24,('LFCR Calc'!C23-'LFCR Calc'!E23-'LFCR Calc'!O23)," ") -> 0.49041 | D24: =+IF('LFCR Calc'!$G$92>='LFCR Calc'!A24,'LFCR Calc'!$G$85*C24," ") -> 0.0476335233 | E24: =+IF('LFCR Calc'!$G$92>='LFCR Calc'!A24, ((100/'LFCR Calc'!$G$92)/100),"") -> 0.025 | F24: 0 | G24: =+IF('LFCR Calc'!$G$92>='LFCR Calc'!A24,'LFCR Calc'!$G$94," ") -> 0.00363 | H24: =+IF('LFCR Calc'!$G$92>='LFCR Calc'!A24,(+D24+E24+F24+G24)," ") -> 0.0762635233 | I24: =+IF('LFCR Calc'!$G$92>='LFCR Calc'!A24,(1/((1+'LFCR Calc'!$G$84)^'LFCR Calc'!B24))," ") -> 0.377021044 | J24: =+IF('LFCR Calc'!$G$92>='LFCR Calc'!A24,'LFCR Calc'!H24*'LFCR Calc'!I24," ") -> 0.02875295318 | K24: =+IF('LFCR Calc'!$G$92>='LFCR Calc'!A24,'LFCR Calc'!K23+'LFCR Calc'!J24," ") -> 0.3513179651 | L24: =+IF('LFCR Calc'!$G$92>='LFCR Calc'!A24,'LFCR Calc'!K24*'LFCR Calc'!$G$84*(1+'LFCR Calc'!$G$84)^'LFCR Calc'!B24/((1+'LFCR Calc'!$G$84)^'LFCR Calc'!B24-1)," ") -> 0.04069335588 | N24: =+IF('LFCR Calc'!$G$92>='LFCR Calc'!A24,'Depreciation Table'!E20," ") -> 0.059 | O24: =+IF('LFCR Calc'!$G$92>='LFCR Calc'!A24,(('LFCR Calc'!N24-'LFCR Calc'!E24)*('LFCR Calc'!$G$89))," ") -> 0.0119 | P24: =IF(+'LFCR Calc'!$G$92>='LFCR Calc'!A24,+'LFCR Calc'!O24+P23,"") -> 0.19649
A25: 15 | B25: =IF('LFCR Calc'!$G$92>=A25,A25," ") -> 15 | C25: =+IF('LFCR Calc'!$G$92>='LFCR Calc'!A25,('LFCR Calc'!C24-'LFCR Calc'!E24-'LFCR Calc'!O24)," ") -> 0.45351 | D25: =+IF('LFCR Calc'!$G$92>='LFCR Calc'!A25,'LFCR Calc'!$G$85*C25," ") -> 0.0440494263 | E25: =+IF('LFCR Calc'!$G$92>='LFCR Calc'!A25, ((100/'LFCR Calc'!$G$92)/100),"") -> 0.025 | F25: 0 | G25: =+IF('LFCR Calc'!$G$92>='LFCR Calc'!A25,'LFCR Calc'!$G$94," ") -> 0.00363 | H25: =+IF('LFCR Calc'!$G$92>='LFCR Calc'!A25,(+D25+E25+F25+G25)," ") -> 0.0726794263 | I25: =+IF('LFCR Calc'!$G$92>='LFCR Calc'!A25,(1/((1+'LFCR Calc'!$G$84)^'LFCR Calc'!B25))," ") -> 0.3516462506 | J25: =+IF('LFCR Calc'!$G$92>='LFCR Calc'!A25,'LFCR Calc'!H25*'LFCR Calc'!I25," ") -> 0.02555744775 | K25: =+IF('LFCR Calc'!$G$92>='LFCR Calc'!A25,'LFCR Calc'!K24+'LFCR Calc'!J25," ") -> 0.3768754129 | L25: =+IF('LFCR Calc'!$G$92>='LFCR Calc'!A25,'LFCR Calc'!K25*'LFCR Calc'!$G$84*(1+'LFCR Calc'!$G$84)^'LFCR Calc'!B25/((1+'LFCR Calc'!$G$84)^'LFCR Calc'!B25-1)," ") -> 0.04194520324 | N25: =+IF('LFCR Calc'!$G$92>='LFCR Calc'!A25,'Depreciation Table'!E21," ") -> 0.0591 | O25: =+IF('LFCR Calc'!$G$92>='LFCR Calc'!A25,(('LFCR Calc'!N25-'LFCR Calc'!E25)*('LFCR Calc'!$G$89))," ") -> 0.011935 | P25: =IF(+'LFCR Calc'!$G$92>='LFCR Calc'!A25,+'LFCR Calc'!O25+P24,"") -> 0.208425
A26: 16 | B26: =IF('LFCR Calc'!$G$92>=A26,A26," ") -> 16 | C26: =+IF('LFCR Calc'!$G$92>='LFCR Calc'!A26,('LFCR Calc'!C25-'LFCR Calc'!E25-'LFCR Calc'!O25)," ") -> 0.416575 | D26: =+IF('LFCR Calc'!$G$92>='LFCR Calc'!A26,'LFCR Calc'!$G$85*C26," ") -> 0.04046192975 | E26: =+IF('LFCR Calc'!$G$92>='LFCR Calc'!A26, ((100/'LFCR Calc'!$G$92)/100),"") -> 0.025 | F26: 0 | G26: =+IF('LFCR Calc'!$G$92>='LFCR Calc'!A26,'LFCR Calc'!$G$94," ") -> 0.00363 | H26: =+IF('LFCR Calc'!$G$92>='LFCR Calc'!A26,(+D26+E26+F26+G26)," ") -> 0.06909192975 | I26: =+IF('LFCR Calc'!$G$92>='LFCR Calc'!A26,(1/((1+'LFCR Calc'!$G$84)^'LFCR Calc'!B26))," ") -> 0.3279792667 | J26: =+IF('LFCR Calc'!$G$92>='LFCR Calc'!A26,'LFCR Calc'!H26*'LFCR Calc'!I26," ") -> 0.02266072045 | K26: =+IF('LFCR Calc'!$G$92>='LFCR Calc'!A26,'LFCR Calc'!K25+'LFCR Calc'!J26," ") -> 0.3995361333 | L26: =+IF('LFCR Calc'!$G$92>='LFCR Calc'!A26,'LFCR Calc'!K26*'LFCR Calc'!$G$84*(1+'LFCR Calc'!$G$84)^'LFCR Calc'!B26/((1+'LFCR Calc'!$G$84)^'LFCR Calc'!B26-1)," ") -> 0.04290124687 | N26: =+IF('LFCR Calc'!$G$92>='LFCR Calc'!A26,'Depreciation Table'!E22," ") -> 0.0295 | O26: =+IF('LFCR Calc'!$G$92>='LFCR Calc'!A26,(('LFCR Calc'!N26-'LFCR Calc'!E26)*('LFCR Calc'!$G$89))," ") -> 0.001575 | P26: =IF(+'LFCR Calc'!$G$92>='LFCR Calc'!A26,+'LFCR Calc'!O26+P25,"") -> 0.21
A27: 17 | B27: =IF('LFCR Calc'!$G$92>=A27,A27," ") -> 17 | C27: =+IF('LFCR Calc'!$G$92>='LFCR Calc'!A27,('LFCR Calc'!C26-'LFCR Calc'!E26-'LFCR Calc'!O26)," ") -> 0.39 | D27: =+IF('LFCR Calc'!$G$92>='LFCR Calc'!A27,'LFCR Calc'!$G$85*C27," ") -> 0.0378807 | E27: =+IF('LFCR Calc'!$G$92>='LFCR Calc'!A27, ((100/'LFCR Calc'!$G$92)/100),"") -> 0.025 | F27: 0 | G27: =+IF('LFCR Calc'!$G$92>='LFCR Calc'!A27,'LFCR Calc'!$G$94," ") -> 0.00363 | H27: =+IF('LFCR Calc'!$G$92>='LFCR Calc'!A27,(+D27+E27+F27+G27)," ") -> 0.0665107 | I27: =+IF('LFCR Calc'!$G$92>='LFCR Calc'!A27,(1/((1+'LFCR Calc'!$G$84)^'LFCR Calc'!B27))," ") -> 0.305905151 | J27: =+IF('LFCR Calc'!$G$92>='LFCR Calc'!A27,'LFCR Calc'!H27*'LFCR Calc'!I27," ") -> 0.02034596573 | K27: =+IF('LFCR Calc'!$G$92>='LFCR Calc'!A27,'LFCR Calc'!K26+'LFCR Calc'!J27," ") -> 0.419882099 | L27: =+IF('LFCR Calc'!$G$92>='LFCR Calc'!A27,'LFCR Calc'!K27*'LFCR Calc'!$G$84*(1+'LFCR Calc'!$G$84)^'LFCR Calc'!B27/((1+'LFCR Calc'!$G$84)^'LFCR Calc'!B27-1)," ") -> 0.04365209209 | N27: =+IF('LFCR Calc'!$G$92>='LFCR Calc'!A27,'Depreciation Table'!E23," ") -> 0 | O27: =+IF('LFCR Calc'!$G$92>='LFCR Calc'!A27,(('LFCR Calc'!N27-'LFCR Calc'!E27)*('LFCR Calc'!$G$89))," ") -> -0.00875 | P27: =IF(+'LFCR Calc'!$G$92>='LFCR Calc'!A27,+'LFCR Calc'!O27+P26,"") -> 0.20125
A28: 18 | B28: =IF('LFCR Calc'!$G$92>=A28,A28," ") -> 18 | C28: =+IF('LFCR Calc'!$G$92>='LFCR Calc'!A28,('LFCR Calc'!C27-'LFCR Calc'!E27-'LFCR Calc'!O27)," ") -> 0.37375 | D28: =+IF('LFCR Calc'!$G$92>='LFCR Calc'!A28,'LFCR Calc'!$G$85*C28," ") -> 0.0363023375 | E28: =+IF('LFCR Calc'!$G$92>='LFCR Calc'!A28, ((100/'LFCR Calc'!$G$92)/100),"") -> 0.025 | F28: 0 | G28: =+IF('LFCR Calc'!$G$92>='LFCR Calc'!A28,'LFCR Calc'!$G$94," ") -> 0.00363 | H28: =+IF('LFCR Calc'!$G$92>='LFCR Calc'!A28,(+D28+E28+F28+G28)," ") -> 0.0649323375 | I28: =+IF('LFCR Calc'!$G$92>='LFCR Calc'!A28,(1/((1+'LFCR Calc'!$G$84)^'LFCR Calc'!B28))," ") -> 0.2853166981 | J28: =+IF('LFCR Calc'!$G$92>='LFCR Calc'!A28,'LFCR Calc'!H28*'LFCR Calc'!I28," ") -> 0.01852628013 | K28: =+IF('LFCR Calc'!$G$92>='LFCR Calc'!A28,'LFCR Calc'!K27+'LFCR Calc'!J28," ") -> 0.4384083792 | L28: =+IF('LFCR Calc'!$G$92>='LFCR Calc'!A28,'LFCR Calc'!K28*'LFCR Calc'!$G$84*(1+'LFCR Calc'!$G$84)^'LFCR Calc'!B28/((1+'LFCR Calc'!$G$84)^'LFCR Calc'!B28-1)," ") -> 0.04426512912 | N28: =+IF('LFCR Calc'!$G$92>='LFCR Calc'!A28,'Depreciation Table'!E24," ") -> 0 | O28: =+IF('LFCR Calc'!$G$92>='LFCR Calc'!A28,(('LFCR Calc'!N28-'LFCR Calc'!E28)*('LFCR Calc'!$G$89))," ") -> -0.00875 | P28: =IF(+'LFCR Calc'!$G$92>='LFCR Calc'!A28,+'LFCR Calc'!O28+P27,"") -> 0.1925
A29: 19 | B29: =IF('LFCR Calc'!$G$92>=A29,A29," ") -> 19 | C29: =+IF('LFCR Calc'!$G$92>='LFCR Calc'!A29,('LFCR Calc'!C28-'LFCR Calc'!E28-'LFCR Calc'!O28)," ") -> 0.3575 | D29: =+IF('LFCR Calc'!$G$92>='LFCR Calc'!A29,'LFCR Calc'!$G$85*C29," ") -> 0.034723975 | E29: =+IF('LFCR Calc'!$G$92>='LFCR Calc'!A29, ((100/'LFCR Calc'!$G$92)/100),"") -> 0.025 | F29: 0 | G29: =+IF('LFCR Calc'!$G$92>='LFCR Calc'!A29,'LFCR Calc'!$G$94," ") -> 0.00363 | H29: =+IF('LFCR Calc'!$G$92>='LFCR Calc'!A29,(+D29+E29+F29+G29)," ") -> 0.063353975 | I29: =+IF('LFCR Calc'!$G$92>='LFCR Calc'!A29,(1/((1+'LFCR Calc'!$G$84)^'LFCR Calc'!B29))," ") -> 0.2661139178 | J29: =+IF('LFCR Calc'!$G$92>='LFCR Calc'!A29,'LFCR Calc'!H29*'LFCR Calc'!I29," ") -> 0.01685937449 | K29: =+IF('LFCR Calc'!$G$92>='LFCR Calc'!A29,'LFCR Calc'!K28+'LFCR Calc'!J29," ") -> 0.4552677537 | L29: =+IF('LFCR Calc'!$G$92>='LFCR Calc'!A29,'LFCR Calc'!K29*'LFCR Calc'!$G$84*(1+'LFCR Calc'!$G$84)^'LFCR Calc'!B29/((1+'LFCR Calc'!$G$84)^'LFCR Calc'!B29-1)," ") -> 0.04476460571 | N29: =+IF('LFCR Calc'!$G$92>='LFCR Calc'!A29,'Depreciation Table'!E25," ") -> 0 | O29: =+IF('LFCR Calc'!$G$92>='LFCR Calc'!A29,(('LFCR Calc'!N29-'LFCR Calc'!E29)*('LFCR Calc'!$G$89))," ") -> -0.00875 | P29: =IF(+'LFCR Calc'!$G$92>='LFCR Calc'!A29,+'LFCR Calc'!O29+P28,"") -> 0.18375
A30: 20 | B30: =IF('LFCR Calc'!$G$92>=A30,A30," ") -> 20 | C30: =+IF('LFCR Calc'!$G$92>='LFCR Calc'!A30,('LFCR Calc'!C29-'LFCR Calc'!E29-'LFCR Calc'!O29)," ") -> 0.34125 | D30: =+IF('LFCR Calc'!$G$92>='LFCR Calc'!A30,'LFCR Calc'!$G$85*C30," ") -> 0.0331456125 | E30: =+IF('LFCR Calc'!$G$92>='LFCR Calc'!A30, ((100/'LFCR Calc'!$G$92)/100),"") -> 0.025 | F30: 0 | G30: =+IF('LFCR Calc'!$G$92>='LFCR Calc'!A30,'LFCR Calc'!$G$94," ") -> 0.00363 | H30: =+IF('LFCR Calc'!$G$92>='LFCR Calc'!A30,(+D30+E30+F30+G30)," ") -> 0.0617756125 | I30: =+IF('LFCR Calc'!$G$92>='LFCR Calc'!A30,(1/((1+'LFCR Calc'!$G$84)^'LFCR Calc'!B30))," ") -> 0.2482035496 | J30: =+IF('LFCR Calc'!$G$92>='LFCR Calc'!A30,'LFCR Calc'!H30*'LFCR Calc'!I30," ") -> 0.0153329263 | K30: =+IF('LFCR Calc'!$G$92>='LFCR Calc'!A30,'LFCR Calc'!K29+'LFCR Calc'!J30," ") -> 0.47060068 | L30: =+IF('LFCR Calc'!$G$92>='LFCR Calc'!A30,'LFCR Calc'!K30*'LFCR Calc'!$G$84*(1+'LFCR Calc'!$G$84)^'LFCR Calc'!B30/((1+'LFCR Calc'!$G$84)^'LFCR Calc'!B30-1)," ") -> 0.04516986619 | N30: =+IF('LFCR Calc'!$G$92>='LFCR Calc'!A30,'Depreciation Table'!E26," ") -> 0 | O30: =+IF('LFCR Calc'!$G$92>='LFCR Calc'!A30,(('LFCR Calc'!N30-'LFCR Calc'!E30)*('LFCR Calc'!$G$89))," ") -> -0.00875 | P30: =IF(+'LFCR Calc'!$G$92>='LFCR Calc'!A30,+'LFCR Calc'!O30+P29,"") -> 0.175
A31: 21 | B31: =IF('LFCR Calc'!$G$92>=A31,A31," ") -> 21 | C31: =+IF('LFCR Calc'!$G$92>='LFCR Calc'!A31,('LFCR Calc'!C30-'LFCR Calc'!E30-'LFCR Calc'!O30)," ") -> 0.325 | D31: =+IF('LFCR Calc'!$G$92>='LFCR Calc'!A31,'LFCR Calc'!$G$85*C31," ") -> 0.03156725 | E31: =+IF('LFCR Calc'!$G$92>='LFCR Calc'!A31, ((100/'LFCR Calc'!$G$92)/100),"") -> 0.025 | F31: 0 | G31: =+IF('LFCR Calc'!$G$92>='LFCR Calc'!A31,'LFCR Calc'!$G$94," ") -> 0.00363 | H31: =+IF('LFCR Calc'!$G$92>='LFCR Calc'!A31,(+D31+E31+F31+G31)," ") -> 0.06019725 | I31: =+IF('LFCR Calc'!$G$92>='LFCR Calc'!A31,(1/((1+'LFCR Calc'!$G$84)^'LFCR Calc'!B31))," ") -> 0.2314986099 | J31: =+IF('LFCR Calc'!$G$92>='LFCR Calc'!A31,'LFCR Calc'!H31*'LFCR Calc'!I31," ") -> 0.0139355797 | K31: =+IF('LFCR Calc'!$G$92>='LFCR Calc'!A31,'LFCR Calc'!K30+'LFCR Calc'!J31," ") -> 0.4845362597 | L31: =+IF('LFCR Calc'!$G$92>='LFCR Calc'!A31,'LFCR Calc'!K31*'LFCR Calc'!$G$84*(1+'LFCR Calc'!$G$84)^'LFCR Calc'!B31/((1+'LFCR Calc'!$G$84)^'LFCR Calc'!B31-1)," ") -> 0.04549651692 | N31: =+IF('LFCR Calc'!$G$92>='LFCR Calc'!A31,'Depreciation Table'!E27," ") -> 0 | O31: =+IF('LFCR Calc'!$G$92>='LFCR Calc'!A31,(('LFCR Calc'!N31-'LFCR Calc'!E31)*('LFCR Calc'!$G$89))," ") -> -0.00875 | P31: =IF(+'LFCR Calc'!$G$92>='LFCR Calc'!A31,+'LFCR Calc'!O31+P30,"") -> 0.16625
A32: 22 | B32: =IF('LFCR Calc'!$G$92>=A32,A32," ") -> 22 | C32: =+IF('LFCR Calc'!$G$92>='LFCR Calc'!A32,('LFCR Calc'!C31-'LFCR Calc'!E31-'LFCR Calc'!O31)," ") -> 0.30875 | D32: =+IF('LFCR Calc'!$G$92>='LFCR Calc'!A32,'LFCR Calc'!$G$85*C32," ") -> 0.0299888875 | E32: =+IF('LFCR Calc'!$G$92>='LFCR Calc'!A32, ((100/'LFCR Calc'!$G$92)/100),"") -> 0.025 | F32: 0 | G32: =+IF('LFCR Calc'!$G$92>='LFCR Calc'!A32,'LFCR Calc'!$G$94," ") -> 0.00363 | H32: =+IF('LFCR Calc'!$G$92>='LFCR Calc'!A32,(+D32+E32+F32+G32)," ") -> 0.0586188875 | I32: =+IF('LFCR Calc'!$G$92>='LFCR Calc'!A32,(1/((1+'LFCR Calc'!$G$84)^'LFCR Calc'!B32))," ") -> 0.2159179693 | J32: =+IF('LFCR Calc'!$G$92>='LFCR Calc'!A32,'LFCR Calc'!H32*'LFCR Calc'!I32," ") -> 0.01265687115 | K32: =+IF('LFCR Calc'!$G$92>='LFCR Calc'!A32,'LFCR Calc'!K31+'LFCR Calc'!J32," ") -> 0.4971931308 | L32: =+IF('LFCR Calc'!$G$92>='LFCR Calc'!A32,'LFCR Calc'!K32*'LFCR Calc'!$G$84*(1+'LFCR Calc'!$G$84)^'LFCR Calc'!B32/((1+'LFCR Calc'!$G$84)^'LFCR Calc'!B32-1)," ") -> 0.045757274 | N32: =+IF('LFCR Calc'!$G$92>='LFCR Calc'!A32,'Depreciation Table'!E28," ") -> 0 | O32: =+IF('LFCR Calc'!$G$92>='LFCR Calc'!A32,(('LFCR Calc'!N32-'LFCR Calc'!E32)*('LFCR Calc'!$G$89))," ") -> -0.00875 | P32: =IF(+'LFCR Calc'!$G$92>='LFCR Calc'!A32,+'LFCR Calc'!O32+P31,"") -> 0.1575
A33: 23 | B33: =IF('LFCR Calc'!$G$92>=A33,A33," ") -> 23 | C33: =+IF('LFCR Calc'!$G$92>='LFCR Calc'!A33,('LFCR Calc'!C32-'LFCR Calc'!E32-'LFCR Calc'!O32)," ") -> 0.2925 | D33: =+IF('LFCR Calc'!$G$92>='LFCR Calc'!A33,'LFCR Calc'!$G$85*C33," ") -> 0.028410525 | E33: =+IF('LFCR Calc'!$G$92>='LFCR Calc'!A33, ((100/'LFCR Calc'!$G$92)/100),"") -> 0.025 | F33: 0 | G33: =+IF('LFCR Calc'!$G$92>='LFCR Calc'!A33,'LFCR Calc'!$G$94," ") -> 0.00363 | H33: =+IF('LFCR Calc'!$G$92>='LFCR Calc'!A33,(+D33+E33+F33+G33)," ") -> 0.057040525 | I33: =+IF('LFCR Calc'!$G$92>='LFCR Calc'!A33,(1/((1+'LFCR Calc'!$G$84)^'LFCR Calc'!B33))," ") -> 0.2013859585 | J33: =+IF('LFCR Calc'!$G$92>='LFCR Calc'!A33,'LFCR Calc'!H33*'LFCR Calc'!I33," ") -> 0.0114871608 | K33: =+IF('LFCR Calc'!$G$92>='LFCR Calc'!A33,'LFCR Calc'!K32+'LFCR Calc'!J33," ") -> 0.5086802916 | L33: =+IF('LFCR Calc'!$G$92>='LFCR Calc'!A33,'LFCR Calc'!K33*'LFCR Calc'!$G$84*(1+'LFCR Calc'!$G$84)^'LFCR Calc'!B33/((1+'LFCR Calc'!$G$84)^'LFCR Calc'!B33-1)," ") -> 0.04596259011 | N33: =+IF('LFCR Calc'!$G$92>='LFCR Calc'!A33,'Depreciation Table'!E29," ") -> 0 | O33: =+IF('LFCR Calc'!$G$92>='LFCR Calc'!A33,(('LFCR Calc'!N33-'LFCR Calc'!E33)*('LFCR Calc'!$G$89))," ") -> -0.00875 | P33: =IF(+'LFCR Calc'!$G$92>='LFCR Calc'!A33,+'LFCR Calc'!O33+P32,"") -> 0.14875
A34: 24 | B34: =IF('LFCR Calc'!$G$92>=A34,A34," ") -> 24 | C34: =+IF('LFCR Calc'!$G$92>='LFCR Calc'!A34,('LFCR Calc'!C33-'LFCR Calc'!E33-'LFCR Calc'!O33)," ") -> 0.27625 | D34: =+IF('LFCR Calc'!$G$92>='LFCR Calc'!A34,'LFCR Calc'!$G$85*C34," ") -> 0.0268321625 | E34: =+IF('LFCR Calc'!$G$92>='LFCR Calc'!A34, ((100/'LFCR Calc'!$G$92)/100),"") -> 0.025 | F34: 0 | G34: =+IF('LFCR Calc'!$G$92>='LFCR Calc'!A34,'LFCR Calc'!$G$94," ") -> 0.00363 | H34: =+IF('LFCR Calc'!$G$92>='LFCR Calc'!A34,(+D34+E34+F34+G34)," ") -> 0.0554621625 | I34: =+IF('LFCR Calc'!$G$92>='LFCR Calc'!A34,(1/((1+'LFCR Calc'!$G$84)^'LFCR Calc'!B34))," ") -> 0.1878320013 | J34: =+IF('LFCR Calc'!$G$92>='LFCR Calc'!A34,'LFCR Calc'!H34*'LFCR Calc'!I34," ") -> 0.01041756898 | K34: =+IF('LFCR Calc'!$G$92>='LFCR Calc'!A34,'LFCR Calc'!K33+'LFCR Calc'!J34," ") -> 0.5190978606 | L34: =+IF('LFCR Calc'!$G$92>='LFCR Calc'!A34,'LFCR Calc'!K34*'LFCR Calc'!$G$84*(1+'LFCR Calc'!$G$84)^'LFCR Calc'!B34/((1+'LFCR Calc'!$G$84)^'LFCR Calc'!B34-1)," ") -> 0.04612112479 | N34: =+IF('LFCR Calc'!$G$92>='LFCR Calc'!A34,'Depreciation Table'!E30," ") -> 0 | O34: =+IF('LFCR Calc'!$G$92>='LFCR Calc'!A34,(('LFCR Calc'!N34-'LFCR Calc'!E34)*('LFCR Calc'!$G$89))," ") -> -0.00875 | P34: =IF(+'LFCR Calc'!$G$92>='LFCR Calc'!A34,+'LFCR Calc'!O34+P33,"") -> 0.14
A35: 25 | B35: =IF('LFCR Calc'!$G$92>=A35,A35," ") -> 25 | C35: =+IF('LFCR Calc'!$G$92>='LFCR Calc'!A35,('LFCR Calc'!C34-'LFCR Calc'!E34-'LFCR Calc'!O34)," ") -> 0.26 | D35: =+IF('LFCR Calc'!$G$92>='LFCR Calc'!A35,'LFCR Calc'!$G$85*C35," ") -> 0.0252538 | E35: =+IF('LFCR Calc'!$G$92>='LFCR Calc'!A35, ((100/'LFCR Calc'!$G$92)/100),"") -> 0.025 | F35: 0 | G35: =+IF('LFCR Calc'!$G$92>='LFCR Calc'!A35,'LFCR Calc'!$G$94," ") -> 0.00363 | H35: =+IF('LFCR Calc'!$G$92>='LFCR Calc'!A35,(+D35+E35+F35+G35)," ") -> 0.0538838 | I35: =+IF('LFCR Calc'!$G$92>='LFCR Calc'!A35,(1/((1+'LFCR Calc'!$G$84)^'LFCR Calc'!B35))," ") -> 0.1751902713 | J35: =+IF('LFCR Calc'!$G$92>='LFCR Calc'!A35,'LFCR Calc'!H35*'LFCR Calc'!I35," ") -> 0.009439917541 | K35: =+IF('LFCR Calc'!$G$92>='LFCR Calc'!A35,'LFCR Calc'!K34+'LFCR Calc'!J35," ") -> 0.5285377781 | L35: =+IF('LFCR Calc'!$G$92>='LFCR Calc'!A35,'LFCR Calc'!K35*'LFCR Calc'!$G$84*(1+'LFCR Calc'!$G$84)^'LFCR Calc'!B35/((1+'LFCR Calc'!$G$84)^'LFCR Calc'!B35-1)," ") -> 0.0462401021 | N35: =+IF('LFCR Calc'!$G$92>='LFCR Calc'!A35,'Depreciation Table'!E31," ") -> 0 | O35: =+IF('LFCR Calc'!$G$92>='LFCR Calc'!A35,(('LFCR Calc'!N35-'LFCR Calc'!E35)*('LFCR Calc'!$G$89))," ") -> -0.00875 | P35: =IF(+'LFCR Calc'!$G$92>='LFCR Calc'!A35,+'LFCR Calc'!O35+P34,"") -> 0.13125
A36: 26 | B36: =IF('LFCR Calc'!$G$92>=A36,A36," ") -> 26 | C36: =+IF('LFCR Calc'!$G$92>='LFCR Calc'!A36,('LFCR Calc'!C35-'LFCR Calc'!E35-'LFCR Calc'!O35)," ") -> 0.24375 | D36: =+IF('LFCR Calc'!$G$92>='LFCR Calc'!A36,'LFCR Calc'!$G$85*C36," ") -> 0.0236754375 | E36: =+IF('LFCR Calc'!$G$92>='LFCR Calc'!A36, ((100/'LFCR Calc'!$G$92)/100),"") -> 0.025 | F36: 0 | G36: =+IF('LFCR Calc'!$G$92>='LFCR Calc'!A36,'LFCR Calc'!$G$94," ") -> 0.00363 | H36: =+IF('LFCR Calc'!$G$92>='LFCR Calc'!A36,(+D36+E36+F36+G36)," ") -> 0.0523054375 | I36: =+IF('LFCR Calc'!$G$92>='LFCR Calc'!A36,(1/((1+'LFCR Calc'!$G$84)^'LFCR Calc'!B36))," ") -> 0.1633993726 | J36: =+IF('LFCR Calc'!$G$92>='LFCR Calc'!A36,'LFCR Calc'!H36*'LFCR Calc'!I36," ") -> 0.00854667567 | K36: =+IF('LFCR Calc'!$G$92>='LFCR Calc'!A36,'LFCR Calc'!K35+'LFCR Calc'!J36," ") -> 0.5370844538 | L36: =+IF('LFCR Calc'!$G$92>='LFCR Calc'!A36,'LFCR Calc'!K36*'LFCR Calc'!$G$84*(1+'LFCR Calc'!$G$84)^'LFCR Calc'!B36/((1+'LFCR Calc'!$G$84)^'LFCR Calc'!B36-1)," ") -> 0.04632558585 | N36: =+IF('LFCR Calc'!$G$92>='LFCR Calc'!A36,'Depreciation Table'!E32," ") -> 0 | O36: =+IF('LFCR Calc'!$G$92>='LFCR Calc'!A36,(('LFCR Calc'!N36-'LFCR Calc'!E36)*('LFCR Calc'!$G$89))," ") -> -0.00875 | P36: =IF(+'LFCR Calc'!$G$92>='LFCR Calc'!A36,+'LFCR Calc'!O36+P35,"") -> 0.1225
A37: 27 | B37: =IF('LFCR Calc'!$G$92>=A37,A37," ") -> 27 | C37: =+IF('LFCR Calc'!$G$92>='LFCR Calc'!A37,('LFCR Calc'!C36-'LFCR Calc'!E36-'LFCR Calc'!O36)," ") -> 0.2275 | D37: =+IF('LFCR Calc'!$G$92>='LFCR Calc'!A37,'LFCR Calc'!$G$85*C37," ") -> 0.022097075 | E37: =+IF('LFCR Calc'!$G$92>='LFCR Calc'!A37, ((100/'LFCR Calc'!$G$92)/100),"") -> 0.025 | F37: 0 | G37: =+IF('LFCR Calc'!$G$92>='LFCR Calc'!A37,'LFCR Calc'!$G$94," ") -> 0.00363 | H37: =+IF('LFCR Calc'!$G$92>='LFCR Calc'!A37,(+D37+E37+F37+G37)," ") -> 0.050727075 | I37: =+IF('LFCR Calc'!$G$92>='LFCR Calc'!A37,(1/((1+'LFCR Calc'!$G$84)^'LFCR Calc'!B37))," ") -> 0.1524020413 | J37: =+IF('LFCR Calc'!$G$92>='LFCR Calc'!A37,'LFCR Calc'!H37*'LFCR Calc'!I37," ") -> 0.007730909778 | K37: =+IF('LFCR Calc'!$G$92>='LFCR Calc'!A37,'LFCR Calc'!K36+'LFCR Calc'!J37," ") -> 0.5448153636 | L37: =+IF('LFCR Calc'!$G$92>='LFCR Calc'!A37,'LFCR Calc'!K37*'LFCR Calc'!$G$84*(1+'LFCR Calc'!$G$84)^'LFCR Calc'!B37/((1+'LFCR Calc'!$G$84)^'LFCR Calc'!B37-1)," ") -> 0.04638269386 | N37: =+IF('LFCR Calc'!$G$92>='LFCR Calc'!A37,'Depreciation Table'!E33," ") -> 0 | O37: =+IF('LFCR Calc'!$G$92>='LFCR Calc'!A37,(('LFCR Calc'!N37-'LFCR Calc'!E37)*('LFCR Calc'!$G$89))," ") -> -0.00875 | P37: =IF(+'LFCR Calc'!$G$92>='LFCR Calc'!A37,+'LFCR Calc'!O37+P36,"") -> 0.11375
A38: 28 | B38: =IF('LFCR Calc'!$G$92>=A38,A38," ") -> 28 | C38: =+IF('LFCR Calc'!$G$92>='LFCR Calc'!A38,('LFCR Calc'!C37-'LFCR Calc'!E37-'LFCR Calc'!O37)," ") -> 0.21125 | D38: =+IF('LFCR Calc'!$G$92>='LFCR Calc'!A38,'LFCR Calc'!$G$85*C38," ") -> 0.0205187125 | E38: =+IF('LFCR Calc'!$G$92>='LFCR Calc'!A38, ((100/'LFCR Calc'!$G$92)/100),"") -> 0.025 | F38: 0 | G38: =+IF('LFCR Calc'!$G$92>='LFCR Calc'!A38,'LFCR Calc'!$G$94," ") -> 0.00363 | H38: =+IF('LFCR Calc'!$G$92>='LFCR Calc'!A38,(+D38+E38+F38+G38)," ") -> 0.0491487125 | I38: =+IF('LFCR Calc'!$G$92>='LFCR Calc'!A38,(1/((1+'LFCR Calc'!$G$84)^'LFCR Calc'!B38))," ") -> 0.1421448676 | J38: =+IF('LFCR Calc'!$G$92>='LFCR Calc'!A38,'LFCR Calc'!H38*'LFCR Calc'!I38," ") -> 0.006986237233 | K38: =+IF('LFCR Calc'!$G$92>='LFCR Calc'!A38,'LFCR Calc'!K37+'LFCR Calc'!J38," ") -> 0.5518016008 | L38: =+IF('LFCR Calc'!$G$92>='LFCR Calc'!A38,'LFCR Calc'!K38*'LFCR Calc'!$G$84*(1+'LFCR Calc'!$G$84)^'LFCR Calc'!B38/((1+'LFCR Calc'!$G$84)^'LFCR Calc'!B38-1)," ") -> 0.0464157665 | N38: =+IF('LFCR Calc'!$G$92>='LFCR Calc'!A38,'Depreciation Table'!E34," ") -> 0 | O38: =+IF('LFCR Calc'!$G$92>='LFCR Calc'!A38,(('LFCR Calc'!N38-'LFCR Calc'!E38)*('LFCR Calc'!$G$89))," ") -> -0.00875 | P38: =IF(+'LFCR Calc'!$G$92>='LFCR Calc'!A38,+'LFCR Calc'!O38+P37,"") -> 0.105
A39: 29 | B39: =IF('LFCR Calc'!$G$92>=A39,A39," ") -> 29 | C39: =+IF('LFCR Calc'!$G$92>='LFCR Calc'!A39,('LFCR Calc'!C38-'LFCR Calc'!E38-'LFCR Calc'!O38)," ") -> 0.195 | D39: =+IF('LFCR Calc'!$G$92>='LFCR Calc'!A39,'LFCR Calc'!$G$85*C39," ") -> 0.01894035 | E39: =+IF('LFCR Calc'!$G$92>='LFCR Calc'!A39, ((100/'LFCR Calc'!$G$92)/100),"") -> 0.025 | F39: 0 | G39: =+IF('LFCR Calc'!$G$92>='LFCR Calc'!A39,'LFCR Calc'!$G$94," ") -> 0.00363 | H39: =+IF('LFCR Calc'!$G$92>='LFCR Calc'!A39,(+D39+E39+F39+G39)," ") -> 0.04757035 | I39: =+IF('LFCR Calc'!$G$92>='LFCR Calc'!A39,(1/((1+'LFCR Calc'!$G$84)^'LFCR Calc'!B39))," ") -> 0.1325780365 | J39: =+IF('LFCR Calc'!$G$92>='LFCR Calc'!A39,'LFCR Calc'!H39*'LFCR Calc'!I39," ") -> 0.0063067836 | K39: =+IF('LFCR Calc'!$G$92>='LFCR Calc'!A39,'LFCR Calc'!K38+'LFCR Calc'!J39," ") -> 0.5581083844 | L39: =+IF('LFCR Calc'!$G$92>='LFCR Calc'!A39,'LFCR Calc'!K39*'LFCR Calc'!$G$84*(1+'LFCR Calc'!$G$84)^'LFCR Calc'!B39/((1+'LFCR Calc'!$G$84)^'LFCR Calc'!B39-1)," ") -> 0.04642850045 | N39: =+IF('LFCR Calc'!$G$92>='LFCR Calc'!A39,'Depreciation Table'!E35," ") -> 0 | O39: =+IF('LFCR Calc'!$G$92>='LFCR Calc'!A39,(('LFCR Calc'!N39-'LFCR Calc'!E39)*('LFCR Calc'!$G$89))," ") -> -0.00875 | P39: =IF(+'LFCR Calc'!$G$92>='LFCR Calc'!A39,+'LFCR Calc'!O39+P38,"") -> 0.09625
A40: 30 | B40: =IF('LFCR Calc'!$G$92>=A40,A40," ") -> 30 | C40: =+IF('LFCR Calc'!$G$92>='LFCR Calc'!A40,('LFCR Calc'!C39-'LFCR Calc'!E39-'LFCR Calc'!O39)," ") -> 0.17875 | D40: =+IF('LFCR Calc'!$G$92>='LFCR Calc'!A40,'LFCR Calc'!$G$85*C40," ") -> 0.0173619875 | E40: =+IF('LFCR Calc'!$G$92>='LFCR Calc'!A40, ((100/'LFCR Calc'!$G$92)/100),"") -> 0.025 | F40: 0 | G40: =+IF('LFCR Calc'!$G$92>='LFCR Calc'!A40,'LFCR Calc'!$G$94," ") -> 0.00363 | H40: =+IF('LFCR Calc'!$G$92>='LFCR Calc'!A40,(+D40+E40+F40+G40)," ") -> 0.0459919875 | I40: =+IF('LFCR Calc'!$G$92>='LFCR Calc'!A40,(1/((1+'LFCR Calc'!$G$84)^'LFCR Calc'!B40))," ") -> 0.1236550855 | J40: =+IF('LFCR Calc'!$G$92>='LFCR Calc'!A40,'LFCR Calc'!H40*'LFCR Calc'!I40," ") -> 0.005687143149 | K40: =+IF('LFCR Calc'!$G$92>='LFCR Calc'!A40,'LFCR Calc'!K39+'LFCR Calc'!J40," ") -> 0.5637955276 | L40: =+IF('LFCR Calc'!$G$92>='LFCR Calc'!A40,'LFCR Calc'!K40*'LFCR Calc'!$G$84*(1+'LFCR Calc'!$G$84)^'LFCR Calc'!B40/((1+'LFCR Calc'!$G$84)^'LFCR Calc'!B40-1)," ") -> 0.04642405587 | N40: =+IF('LFCR Calc'!$G$92>='LFCR Calc'!A40,'Depreciation Table'!E36," ") -> 0 | O40: =+IF('LFCR Calc'!$G$92>='LFCR Calc'!A40,(('LFCR Calc'!N40-'LFCR Calc'!E40)*('LFCR Calc'!$G$89))," ") -> -0.00875 | P40: =IF(+'LFCR Calc'!$G$92>='LFCR Calc'!A40,+'LFCR Calc'!O40+P39,"") -> 0.0875
A41: 31 | B41: =IF('LFCR Calc'!$G$92>=A41,A41," ") -> 31 | C41: =+IF('LFCR Calc'!$G$92>='LFCR Calc'!A41,('LFCR Calc'!C40-'LFCR Calc'!E40-'LFCR Calc'!O40)," ") -> 0.1625 | D41: =+IF('LFCR Calc'!$G$92>='LFCR Calc'!A41,'LFCR Calc'!$G$85*C41," ") -> 0.015783625 | E41: =+IF('LFCR Calc'!$G$92>='LFCR Calc'!A41, ((100/'LFCR Calc'!$G$92)/100),"") -> 0.025 | F41: 0 | G41: =+IF('LFCR Calc'!$G$92>='LFCR Calc'!A41,'LFCR Calc'!$G$94," ") -> 0.00363 | H41: =+IF('LFCR Calc'!$G$92>='LFCR Calc'!A41,(+D41+E41+F41+G41)," ") -> 0.044413625 | I41: =+IF('LFCR Calc'!$G$92>='LFCR Calc'!A41,(1/((1+'LFCR Calc'!$G$84)^'LFCR Calc'!B41))," ") -> 0.1153326794 | J41: =+IF('LFCR Calc'!$G$92>='LFCR Calc'!A41,'LFCR Calc'!H41*'LFCR Calc'!I41," ") -> 0.005122342373 | K41: =+IF('LFCR Calc'!$G$92>='LFCR Calc'!A41,'LFCR Calc'!K40+'LFCR Calc'!J41," ") -> 0.5689178699 | L41: =+IF('LFCR Calc'!$G$92>='LFCR Calc'!A41,'LFCR Calc'!K41*'LFCR Calc'!$G$84*(1+'LFCR Calc'!$G$84)^'LFCR Calc'!B41/((1+'LFCR Calc'!$G$84)^'LFCR Calc'!B41-1)," ") -> 0.04640514297 | N41: =+IF('LFCR Calc'!$G$92>='LFCR Calc'!A41,'Depreciation Table'!E37," ") -> 0 | O41: =+IF('LFCR Calc'!$G$92>='LFCR Calc'!A41,(('LFCR Calc'!N41-'LFCR Calc'!E41)*('LFCR Calc'!$G$89))," ") -> -0.00875 | P41: =IF(+'LFCR Calc'!$G$92>='LFCR Calc'!A41,+'LFCR Calc'!O41+P40,"") -> 0.07875
A42: 32 | B42: =IF('LFCR Calc'!$G$92>=A42,A42," ") -> 32 | C42: =+IF('LFCR Calc'!$G$92>='LFCR Calc'!A42,('LFCR Calc'!C41-'LFCR Calc'!E41-'LFCR Calc'!O41)," ") -> 0.14625 | D42: =+IF('LFCR Calc'!$G$92>='LFCR Calc'!A42,'LFCR Calc'!$G$85*C42," ") -> 0.0142052625 | E42: =+IF('LFCR Calc'!$G$92>='LFCR Calc'!A42, ((100/'LFCR Calc'!$G$92)/100),"") -> 0.025 | F42: 0 | G42: =+IF('LFCR Calc'!$G$92>='LFCR Calc'!A42,'LFCR Calc'!$G$94," ") -> 0.00363 | H42: =+IF('LFCR Calc'!$G$92>='LFCR Calc'!A42,(+D42+E42+F42+G42)," ") -> 0.0428352625 | I42: =+IF('LFCR Calc'!$G$92>='LFCR Calc'!A42,(1/((1+'LFCR Calc'!$G$84)^'LFCR Calc'!B42))," ") -> 0.1075703994 | J42: =+IF('LFCR Calc'!$G$92>='LFCR Calc'!A42,'LFCR Calc'!H42*'LFCR Calc'!I42," ") -> 0.004607806295 | K42: =+IF('LFCR Calc'!$G$92>='LFCR Calc'!A42,'LFCR Calc'!K41+'LFCR Calc'!J42," ") -> 0.5735256762 | L42: =+IF('LFCR Calc'!$G$92>='LFCR Calc'!A42,'LFCR Calc'!K42*'LFCR Calc'!$G$84*(1+'LFCR Calc'!$G$84)^'LFCR Calc'!B42/((1+'LFCR Calc'!$G$84)^'LFCR Calc'!B42-1)," ") -> 0.04637409244 | N42: =+IF('LFCR Calc'!$G$92>='LFCR Calc'!A42,'Depreciation Table'!E38," ") -> 0 | O42: =+IF('LFCR Calc'!$G$92>='LFCR Calc'!A42,(('LFCR Calc'!N42-'LFCR Calc'!E42)*('LFCR Calc'!$G$89))," ") -> -0.00875 | P42: =IF(+'LFCR Calc'!$G$92>='LFCR Calc'!A42,+'LFCR Calc'!O42+P41,"") -> 0.07
A43: 33 | B43: =IF('LFCR Calc'!$G$92>=A43,A43," ") -> 33 | C43: =+IF('LFCR Calc'!$G$92>='LFCR Calc'!A43,('LFCR Calc'!C42-'LFCR Calc'!E42-'LFCR Calc'!O42)," ") -> 0.13 | D43: =+IF('LFCR Calc'!$G$92>='LFCR Calc'!A43,'LFCR Calc'!$G$85*C43," ") -> 0.0126269 | E43: =+IF('LFCR Calc'!$G$92>='LFCR Calc'!A43, ((100/'LFCR Calc'!$G$92)/100),"") -> 0.025 | F43: 0 | G43: =+IF('LFCR Calc'!$G$92>='LFCR Calc'!A43,'LFCR Calc'!$G$94," ") -> 0.00363 | H43: =+IF('LFCR Calc'!$G$92>='LFCR Calc'!A43,(+D43+E43+F43+G43)," ") -> 0.0412569 | I43: =+IF('LFCR Calc'!$G$92>='LFCR Calc'!A43,(1/((1+'LFCR Calc'!$G$84)^'LFCR Calc'!B43))," ") -> 0.1003305471 | J43: =+IF('LFCR Calc'!$G$92>='LFCR Calc'!A43,'LFCR Calc'!H43*'LFCR Calc'!I43," ") -> 0.004139327349 | K43: =+IF('LFCR Calc'!$G$92>='LFCR Calc'!A43,'LFCR Calc'!K42+'LFCR Calc'!J43," ") -> 0.5776650036 | L43: =+IF('LFCR Calc'!$G$92>='LFCR Calc'!A43,'LFCR Calc'!K43*'LFCR Calc'!$G$84*(1+'LFCR Calc'!$G$84)^'LFCR Calc'!B43/((1+'LFCR Calc'!$G$84)^'LFCR Calc'!B43-1)," ") -> 0.04633291319 | N43: =+IF('LFCR Calc'!$G$92>='LFCR Calc'!A43,'Depreciation Table'!E39," ") -> 0 | O43: =+IF('LFCR Calc'!$G$92>='LFCR Calc'!A43,(('LFCR Calc'!N43-'LFCR Calc'!E43)*('LFCR Calc'!$G$89))," ") -> -0.00875 | P43: =IF(+'LFCR Calc'!$G$92>='LFCR Calc'!A43,+'LFCR Calc'!O43+P42,"") -> 0.06125
A44: 34 | B44: =IF('LFCR Calc'!$G$92>=A44,A44," ") -> 34 | C44: =+IF('LFCR Calc'!$G$92>='LFCR Calc'!A44,('LFCR Calc'!C43-'LFCR Calc'!E43-'LFCR Calc'!O43)," ") -> 0.11375 | D44: =+IF('LFCR Calc'!$G$92>='LFCR Calc'!A44,'LFCR Calc'!$G$85*C44," ") -> 0.0110485375 | E44: =+IF('LFCR Calc'!$G$92>='LFCR Calc'!A44, ((100/'LFCR Calc'!$G$92)/100),"") -> 0.025 | F44: 0 | G44: =+IF('LFCR Calc'!$G$92>='LFCR Calc'!A44,'LFCR Calc'!$G$94," ") -> 0.00363 | H44: =+IF('LFCR Calc'!$G$92>='LFCR Calc'!A44,(+D44+E44+F44+G44)," ") -> 0.0396785375 | I44: =+IF('LFCR Calc'!$G$92>='LFCR Calc'!A44,(1/((1+'LFCR Calc'!$G$84)^'LFCR Calc'!B44))," ") -> 0.09357796141 | J44: =+IF('LFCR Calc'!$G$92>='LFCR Calc'!A44,'LFCR Calc'!H44*'LFCR Calc'!I44," ") -> 0.003713036651 | K44: =+IF('LFCR Calc'!$G$92>='LFCR Calc'!A44,'LFCR Calc'!K43+'LFCR Calc'!J44," ") -> 0.5813780402 | L44: =+IF('LFCR Calc'!$G$92>='LFCR Calc'!A44,'LFCR Calc'!K44*'LFCR Calc'!$G$84*(1+'LFCR Calc'!$G$84)^'LFCR Calc'!B44/((1+'LFCR Calc'!$G$84)^'LFCR Calc'!B44-1)," ") -> 0.04628333999 | N44: =+IF('LFCR Calc'!$G$92>='LFCR Calc'!A44,'Depreciation Table'!E40," ") -> 0 | O44: =+IF('LFCR Calc'!$G$92>='LFCR Calc'!A44,(('LFCR Calc'!N44-'LFCR Calc'!E44)*('LFCR Calc'!$G$89))," ") -> -0.00875 | P44: =IF(+'LFCR Calc'!$G$92>='LFCR Calc'!A44,+'LFCR Calc'!O44+P43,"") -> 0.0525
A45: 35 | B45: =IF('LFCR Calc'!$G$92>=A45,A45," ") -> 35 | C45: =+IF('LFCR Calc'!$G$92>='LFCR Calc'!A45,('LFCR Calc'!C44-'LFCR Calc'!E44-'LFCR Calc'!O44)," ") -> 0.0975 | D45: =+IF('LFCR Calc'!$G$92>='LFCR Calc'!A45,'LFCR Calc'!$G$85*C45," ") -> 0.009470175 | E45: =+IF('LFCR Calc'!$G$92>='LFCR Calc'!A45, ((100/'LFCR Calc'!$G$92)/100),"") -> 0.025 | F45: 0 | G45: =+IF('LFCR Calc'!$G$92>='LFCR Calc'!A45,'LFCR Calc'!$G$94," ") -> 0.00363 | H45: =+IF('LFCR Calc'!$G$92>='LFCR Calc'!A45,(+D45+E45+F45+G45)," ") -> 0.038100175 | I45: =+IF('LFCR Calc'!$G$92>='LFCR Calc'!A45,(1/((1+'LFCR Calc'!$G$84)^'LFCR Calc'!B45))," ") -> 0.08727984761 | J45: =+IF('LFCR Calc'!$G$92>='LFCR Calc'!A45,'LFCR Calc'!H45*'LFCR Calc'!I45," ") -> 0.003325377468 | K45: =+IF('LFCR Calc'!$G$92>='LFCR Calc'!A45,'LFCR Calc'!K44+'LFCR Calc'!J45," ") -> 0.5847034177 | L45: =+IF('LFCR Calc'!$G$92>='LFCR Calc'!A45,'LFCR Calc'!K45*'LFCR Calc'!$G$84*(1+'LFCR Calc'!$G$84)^'LFCR Calc'!B45/((1+'LFCR Calc'!$G$84)^'LFCR Calc'!B45-1)," ") -> 0.04622687306 | N45: =+IF('LFCR Calc'!$G$92>='LFCR Calc'!A45,'Depreciation Table'!E41," ") -> 0 | O45: =+IF('LFCR Calc'!$G$92>='LFCR Calc'!A45,(('LFCR Calc'!N45-'LFCR Calc'!E45)*('LFCR Calc'!$G$89))," ") -> -0.00875 | P45: =IF(+'LFCR Calc'!$G$92>='LFCR Calc'!A45,+'LFCR Calc'!O45+P44,"") -> 0.04375
A46: 36 | B46: =IF('LFCR Calc'!$G$92>=A46,A46," ") -> 36 | C46: =+IF('LFCR Calc'!$G$92>='LFCR Calc'!A46,('LFCR Calc'!C45-'LFCR Calc'!E45-'LFCR Calc'!O45)," ") -> 0.08125 | D46: =+IF('LFCR Calc'!$G$92>='LFCR Calc'!A46,'LFCR Calc'!$G$85*C46," ") -> 0.0078918125 | E46: =+IF('LFCR Calc'!$G$92>='LFCR Calc'!A46, ((100/'LFCR Calc'!$G$92)/100),"") -> 0.025 | F46: 0 | G46: =+IF('LFCR Calc'!$G$92>='LFCR Calc'!A46,'LFCR Calc'!$G$94," ") -> 0.00363 | H46: =+IF('LFCR Calc'!$G$92>='LFCR Calc'!A46,(+D46+E46+F46+G46)," ") -> 0.0365218125 | I46: =+IF('LFCR Calc'!$G$92>='LFCR Calc'!A46,(1/((1+'LFCR Calc'!$G$84)^'LFCR Calc'!B46))," ") -> 0.0814056182 | J46: =+IF('LFCR Calc'!$G$92>='LFCR Calc'!A46,'LFCR Calc'!H46*'LFCR Calc'!I46," ") -> 0.002973080724 | K46: =+IF('LFCR Calc'!$G$92>='LFCR Calc'!A46,'LFCR Calc'!K45+'LFCR Calc'!J46," ") -> 0.5876764984 | L46: =+IF('LFCR Calc'!$G$92>='LFCR Calc'!A46,'LFCR Calc'!K46*'LFCR Calc'!$G$84*(1+'LFCR Calc'!$G$84)^'LFCR Calc'!B46/((1+'LFCR Calc'!$G$84)^'LFCR Calc'!B46-1)," ") -> 0.04616481111 | N46: =+IF('LFCR Calc'!$G$92>='LFCR Calc'!A46,'Depreciation Table'!E42," ") -> 0 | O46: =+IF('LFCR Calc'!$G$92>='LFCR Calc'!A46,(('LFCR Calc'!N46-'LFCR Calc'!E46)*('LFCR Calc'!$G$89))," ") -> -0.00875 | P46: =IF(+'LFCR Calc'!$G$92>='LFCR Calc'!A46,+'LFCR Calc'!O46+P45,"") -> 0.035
A47: 37 | B47: =IF('LFCR Calc'!$G$92>=A47,A47," ") -> 37 | C47: =+IF('LFCR Calc'!$G$92>='LFCR Calc'!A47,('LFCR Calc'!C46-'LFCR Calc'!E46-'LFCR Calc'!O46)," ") -> 0.065 | D47: =+IF('LFCR Calc'!$G$92>='LFCR Calc'!A47,'LFCR Calc'!$G$85*C47," ") -> 0.00631345 | E47: =+IF('LFCR Calc'!$G$92>='LFCR Calc'!A47, ((100/'LFCR Calc'!$G$92)/100),"") -> 0.025 | F47: 0 | G47: =+IF('LFCR Calc'!$G$92>='LFCR Calc'!A47,'LFCR Calc'!$G$94," ") -> 0.00363 | H47: =+IF('LFCR Calc'!$G$92>='LFCR Calc'!A47,(+D47+E47+F47+G47)," ") -> 0.03494345 | I47: =+IF('LFCR Calc'!$G$92>='LFCR Calc'!A47,(1/((1+'LFCR Calc'!$G$84)^'LFCR Calc'!B47))," ") -> 0.07592674433 | J47: =+IF('LFCR Calc'!$G$92>='LFCR Calc'!A47,'LFCR Calc'!H47*'LFCR Calc'!I47," ") -> 0.002653142394 | K47: =+IF('LFCR Calc'!$G$92>='LFCR Calc'!A47,'LFCR Calc'!K46+'LFCR Calc'!J47," ") -> 0.5903296408 | L47: =+IF('LFCR Calc'!$G$92>='LFCR Calc'!A47,'LFCR Calc'!K47*'LFCR Calc'!$G$84*(1+'LFCR Calc'!$G$84)^'LFCR Calc'!B47/((1+'LFCR Calc'!$G$84)^'LFCR Calc'!B47-1)," ") -> 0.04609827914 | N47: =+IF('LFCR Calc'!$G$92>='LFCR Calc'!A47,'Depreciation Table'!E43," ") -> 0 | O47: =+IF('LFCR Calc'!$G$92>='LFCR Calc'!A47,(('LFCR Calc'!N47-'LFCR Calc'!E47)*('LFCR Calc'!$G$89))," ") -> -0.00875 | P47: =IF(+'LFCR Calc'!$G$92>='LFCR Calc'!A47,+'LFCR Calc'!O47+P46,"") -> 0.02625
A48: 38 | B48: =IF('LFCR Calc'!$G$92>=A48,A48," ") -> 38 | C48: =+IF('LFCR Calc'!$G$92>='LFCR Calc'!A48,('LFCR Calc'!C47-'LFCR Calc'!E47-'LFCR Calc'!O47)," ") -> 0.04875 | D48: =+IF('LFCR Calc'!$G$92>='LFCR Calc'!A48,'LFCR Calc'!$G$85*C48," ") -> 0.0047350875 | E48: =+IF('LFCR Calc'!$G$92>='LFCR Calc'!A48, ((100/'LFCR Calc'!$G$92)/100),"") -> 0.025 | F48: 0 | G48: =+IF('LFCR Calc'!$G$92>='LFCR Calc'!A48,'LFCR Calc'!$G$94," ") -> 0.00363 | H48: =+IF('LFCR Calc'!$G$92>='LFCR Calc'!A48,(+D48+E48+F48+G48)," ") -> 0.0333650875 | I48: =+IF('LFCR Calc'!$G$92>='LFCR Calc'!A48,(1/((1+'LFCR Calc'!$G$84)^'LFCR Calc'!B48))," ") -> 0.07081661723 | J48: =+IF('LFCR Calc'!$G$92>='LFCR Calc'!A48,'LFCR Calc'!H48*'LFCR Calc'!I48," ") -> 0.00236280263 | K48: =+IF('LFCR Calc'!$G$92>='LFCR Calc'!A48,'LFCR Calc'!K47+'LFCR Calc'!J48," ") -> 0.5926924434 | L48: =+IF('LFCR Calc'!$G$92>='LFCR Calc'!A48,'LFCR Calc'!K48*'LFCR Calc'!$G$84*(1+'LFCR Calc'!$G$84)^'LFCR Calc'!B48/((1+'LFCR Calc'!$G$84)^'LFCR Calc'!B48-1)," ") -> 0.04602825181 | N48: =+IF('LFCR Calc'!$G$92>='LFCR Calc'!A48,'Depreciation Table'!E44," ") -> 0 | O48: =+IF('LFCR Calc'!$G$92>='LFCR Calc'!A48,(('LFCR Calc'!N48-'LFCR Calc'!E48)*('LFCR Calc'!$G$89))," ") -> -0.00875 | P48: =IF(+'LFCR Calc'!$G$92>='LFCR Calc'!A48,+'LFCR Calc'!O48+P47,"") -> 0.0175
A49: 39 | B49: =IF('LFCR Calc'!$G$92>=A49,A49," ") -> 39 | C49: =+IF('LFCR Calc'!$G$92>='LFCR Calc'!A49,('LFCR Calc'!C48-'LFCR Calc'!E48-'LFCR Calc'!O48)," ") -> 0.0325 | D49: =+IF('LFCR Calc'!$G$92>='LFCR Calc'!A49,'LFCR Calc'!$G$85*C49," ") -> 0.003156725 | E49: =+IF('LFCR Calc'!$G$92>='LFCR Calc'!A49, ((100/'LFCR Calc'!$G$92)/100),"") -> 0.025 | F49: 0 | G49: =+IF('LFCR Calc'!$G$92>='LFCR Calc'!A49,'LFCR Calc'!$G$94," ") -> 0.00363 | H49: =+IF('LFCR Calc'!$G$92>='LFCR Calc'!A49,(+D49+E49+F49+G49)," ") -> 0.031786725 | I49: =+IF('LFCR Calc'!$G$92>='LFCR Calc'!A49,(1/((1+'LFCR Calc'!$G$84)^'LFCR Calc'!B49))," ") -> 0.06605041899 | J49: =+IF('LFCR Calc'!$G$92>='LFCR Calc'!A49,'LFCR Calc'!H49*'LFCR Calc'!I49," ") -> 0.002099526505 | K49: =+IF('LFCR Calc'!$G$92>='LFCR Calc'!A49,'LFCR Calc'!K48+'LFCR Calc'!J49," ") -> 0.59479197 | L49: =+IF('LFCR Calc'!$G$92>='LFCR Calc'!A49,'LFCR Calc'!K49*'LFCR Calc'!$G$84*(1+'LFCR Calc'!$G$84)^'LFCR Calc'!B49/((1+'LFCR Calc'!$G$84)^'LFCR Calc'!B49-1)," ") -> 0.04595557343 | N49: =+IF('LFCR Calc'!$G$92>='LFCR Calc'!A49,'Depreciation Table'!E45," ") -> 0 | O49: =+IF('LFCR Calc'!$G$92>='LFCR Calc'!A49,(('LFCR Calc'!N49-'LFCR Calc'!E49)*('LFCR Calc'!$G$89))," ") -> -0.00875 | P49: =IF(+'LFCR Calc'!$G$92>='LFCR Calc'!A49,+'LFCR Calc'!O49+P48,"") -> 0.00875
A50: 40 | B50: =IF('LFCR Calc'!$G$92>=A50,A50," ") -> 40 | C50: =+IF('LFCR Calc'!$G$92>='LFCR Calc'!A50,('LFCR Calc'!C49-'LFCR Calc'!E49-'LFCR Calc'!O49)," ") -> 0.01625 | D50: =+IF('LFCR Calc'!$G$92>='LFCR Calc'!A50,'LFCR Calc'!$G$85*C50," ") -> 0.0015783625 | E50: =+IF('LFCR Calc'!$G$92>='LFCR Calc'!A50, ((100/'LFCR Calc'!$G$92)/100),"") -> 0.025 | F50: 0 | G50: =+IF('LFCR Calc'!$G$92>='LFCR Calc'!A50,'LFCR Calc'!$G$94," ") -> 0.00363 | H50: =+IF('LFCR Calc'!$G$92>='LFCR Calc'!A50,(+D50+E50+F50+G50)," ") -> 0.0302083625 | I50: =+IF('LFCR Calc'!$G$92>='LFCR Calc'!A50,(1/((1+'LFCR Calc'!$G$84)^'LFCR Calc'!B50))," ") -> 0.06160500205 | J50: =+IF('LFCR Calc'!$G$92>='LFCR Calc'!A50,'LFCR Calc'!H50*'LFCR Calc'!I50," ") -> 0.001860986234 | K50: =+IF('LFCR Calc'!$G$92>='LFCR Calc'!A50,'LFCR Calc'!K49+'LFCR Calc'!J50," ") -> 0.5966529562 | L50: =+IF('LFCR Calc'!$G$92>='LFCR Calc'!A50,'LFCR Calc'!K50*'LFCR Calc'!$G$84*(1+'LFCR Calc'!$G$84)^'LFCR Calc'!B50/((1+'LFCR Calc'!$G$84)^'LFCR Calc'!B50-1)," ") -> 0.04588097487 | N50: =+IF('LFCR Calc'!$G$92>='LFCR Calc'!A50,'Depreciation Table'!E46," ") -> 0 | O50: =+IF('LFCR Calc'!$G$92>='LFCR Calc'!A50,(('LFCR Calc'!N50-'LFCR Calc'!E50)*('LFCR Calc'!$G$89))," ") -> -0.00875 | P50: =IF(+'LFCR Calc'!$G$92>='LFCR Calc'!A50,+'LFCR Calc'!O50+P49,"") -> -9.36750677e-17
A51: 41 | B51: =IF('LFCR Calc'!$G$92>=A51,A51," ") ->  | C51: =+IF('LFCR Calc'!$G$92>='LFCR Calc'!A51,('LFCR Calc'!C50-'LFCR Calc'!E50-'LFCR Calc'!O50)," ") ->  | D51: =+IF('LFCR Calc'!$G$92>='LFCR Calc'!A51,'LFCR Calc'!$G$85*C51," ") ->  | E51: =+IF('LFCR Calc'!$G$92>='LFCR Calc'!A51, ((100/'LFCR Calc'!$G$92)/100),"") ->  | F51: 0 | G51: =+IF('LFCR Calc'!$G$92>='LFCR Calc'!A51,'LFCR Calc'!$G$94," ") ->  | H51: =+IF('LFCR Calc'!$G$92>='LFCR Calc'!A51,(+D51+E51+F51+G51)," ") ->  | I51: =+IF('LFCR Calc'!$G$92>='LFCR Calc'!A51,(1/((1+'LFCR Calc'!$G$84)^'LFCR Calc'!B51))," ") ->  | J51: =+IF('LFCR Calc'!$G$92>='LFCR Calc'!A51,'LFCR Calc'!H51*'LFCR Calc'!I51," ") ->  | K51: =+IF('LFCR Calc'!$G$92>='LFCR Calc'!A51,'LFCR Calc'!K50+'LFCR Calc'!J51," ") ->  | L51: =+IF('LFCR Calc'!$G$92>='LFCR Calc'!A51,'LFCR Calc'!K51*'LFCR Calc'!$G$84*(1+'LFCR Calc'!$G$84)^'LFCR Calc'!B51/((1+'LFCR Calc'!$G$84)^'LFCR Calc'!B51-1)," ") ->  | N51: =+IF('LFCR Calc'!$G$92>='LFCR Calc'!A51,'Depreciation Table'!E47," ") ->  | O51: =+IF('LFCR Calc'!$G$92>='LFCR Calc'!A51,(('LFCR Calc'!N51-'LFCR Calc'!E51)*('LFCR Calc'!$G$89))," ") ->  | P51: =IF(+'LFCR Calc'!$G$92>='LFCR Calc'!A51,+'LFCR Calc'!O51+P50,"") -> 
A52: 42 | B52: =IF('LFCR Calc'!$G$92>=A52,A52," ") ->  | C52: =+IF('LFCR Calc'!$G$92>='LFCR Calc'!A52,('LFCR Calc'!C51-'LFCR Calc'!E51-'LFCR Calc'!O51)," ") ->  | D52: =+IF('LFCR Calc'!$G$92>='LFCR Calc'!A52,'LFCR Calc'!$G$85*C52," ") ->  | E52: =+IF('LFCR Calc'!$G$92>='LFCR Calc'!A52, ((100/'LFCR Calc'!$G$92)/100),"") ->  | F52: 0 | G52: =+IF('LFCR Calc'!$G$92>='LFCR Calc'!A52,'LFCR Calc'!$G$94," ") ->  | H52: =+IF('LFCR Calc'!$G$92>='LFCR Calc'!A52,(+D52+E52+F52+G52)," ") ->  | I52: =+IF('LFCR Calc'!$G$92>='LFCR Calc'!A52,(1/((1+'LFCR Calc'!$G$84)^'LFCR Calc'!B52))," ") ->  | J52: =+IF('LFCR Calc'!$G$92>='LFCR Calc'!A52,'LFCR Calc'!H52*'LFCR Calc'!I52," ") ->  | K52: =+IF('LFCR Calc'!$G$92>='LFCR Calc'!A52,'LFCR Calc'!K51+'LFCR Calc'!J52," ") ->  | L52: =+IF('LFCR Calc'!$G$92>='LFCR Calc'!A52,'LFCR Calc'!K52*'LFCR Calc'!$G$84*(1+'LFCR Calc'!$G$84)^'LFCR Calc'!B52/((1+'LFCR Calc'!$G$84)^'LFCR Calc'!B52-1)," ") ->  | N52: =+IF('LFCR Calc'!$G$92>='LFCR Calc'!A52,'Depreciation Table'!E48," ") ->  | O52: =+IF('LFCR Calc'!$G$92>='LFCR Calc'!A52,(('LFCR Calc'!N52-'LFCR Calc'!E52)*('LFCR Calc'!$G$89))," ") ->  | P52: =IF(+'LFCR Calc'!$G$92>='LFCR Calc'!A52,+'LFCR Calc'!O52+P51,"") -> 
A53: 43 | B53: =IF('LFCR Calc'!$G$92>=A53,A53," ") ->  | C53: =+IF('LFCR Calc'!$G$92>='LFCR Calc'!A53,('LFCR Calc'!C52-'LFCR Calc'!E52-'LFCR Calc'!O52)," ") ->  | D53: =+IF('LFCR Calc'!$G$92>='LFCR Calc'!A53,'LFCR Calc'!$G$85*C53," ") ->  | E53: =+IF('LFCR Calc'!$G$92>='LFCR Calc'!A53, ((100/'LFCR Calc'!$G$92)/100),"") ->  | F53: 0 | G53: =+IF('LFCR Calc'!$G$92>='LFCR Calc'!A53,'LFCR Calc'!$G$94," ") ->  | H53: =+IF('LFCR Calc'!$G$92>='LFCR Calc'!A53,(+D53+E53+F53+G53)," ") ->  | I53: =+IF('LFCR Calc'!$G$92>='LFCR Calc'!A53,(1/((1+'LFCR Calc'!$G$84)^'LFCR Calc'!B53))," ") ->  | J53: =+IF('LFCR Calc'!$G$92>='LFCR Calc'!A53,'LFCR Calc'!H53*'LFCR Calc'!I53," ") ->  | K53: =+IF('LFCR Calc'!$G$92>='LFCR Calc'!A53,'LFCR Calc'!K52+'LFCR Calc'!J53," ") ->  | L53: =+IF('LFCR Calc'!$G$92>='LFCR Calc'!A53,'LFCR Calc'!K53*'LFCR Calc'!$G$84*(1+'LFCR Calc'!$G$84)^'LFCR Calc'!B53/((1+'LFCR Calc'!$G$84)^'LFCR Calc'!B53-1)," ") ->  | N53: =+IF('LFCR Calc'!$G$92>='LFCR Calc'!A53,'Depreciation Table'!E49," ") ->  | O53: =+IF('LFCR Calc'!$G$92>='LFCR Calc'!A53,(('LFCR Calc'!N53-'LFCR Calc'!E53)*('LFCR Calc'!$G$89))," ") ->  | P53: =IF(+'LFCR Calc'!$G$92>='LFCR Calc'!A53,+'LFCR Calc'!O53+P52,"") -> 
A54: 44 | B54: =IF('LFCR Calc'!$G$92>=A54,A54," ") ->  | C54: =+IF('LFCR Calc'!$G$92>='LFCR Calc'!A54,('LFCR Calc'!C53-'LFCR Calc'!E53-'LFCR Calc'!O53)," ") ->  | D54: =+IF('LFCR Calc'!$G$92>='LFCR Calc'!A54,'LFCR Calc'!$G$85*C54," ") ->  | E54: =+IF('LFCR Calc'!$G$92>='LFCR Calc'!A54, ((100/'LFCR Calc'!$G$92)/100),"") ->  | F54: 0 | G54: =+IF('LFCR Calc'!$G$92>='LFCR Calc'!A54,'LFCR Calc'!$G$94," ") ->  | H54: =+IF('LFCR Calc'!$G$92>='LFCR Calc'!A54,(+D54+E54+F54+G54)," ") ->  | I54: =+IF('LFCR Calc'!$G$92>='LFCR Calc'!A54,(1/((1+'LFCR Calc'!$G$84)^'LFCR Calc'!B54))," ") ->  | J54: =+IF('LFCR Calc'!$G$92>='LFCR Calc'!A54,'LFCR Calc'!H54*'LFCR Calc'!I54," ") ->  | K54: =+IF('LFCR Calc'!$G$92>='LFCR Calc'!A54,'LFCR Calc'!K53+'LFCR Calc'!J54," ") ->  | L54: =+IF('LFCR Calc'!$G$92>='LFCR Calc'!A54,'LFCR Calc'!K54*'LFCR Calc'!$G$84*(1+'LFCR Calc'!$G$84)^'LFCR Calc'!B54/((1+'LFCR Calc'!$G$84)^'LFCR Calc'!B54-1)," ") ->  | N54: =+IF('LFCR Calc'!$G$92>='LFCR Calc'!A54,'Depreciation Table'!E50," ") ->  | O54: =+IF('LFCR Calc'!$G$92>='LFCR Calc'!A54,(('LFCR Calc'!N54-'LFCR Calc'!E54)*('LFCR Calc'!$G$89))," ") ->  | P54: =IF(+'LFCR Calc'!$G$92>='LFCR Calc'!A54,+'LFCR Calc'!O54+P53,"") -> 
A55: 45 | B55: =IF('LFCR Calc'!$G$92>=A55,A55," ") ->  | C55: =+IF('LFCR Calc'!$G$92>='LFCR Calc'!A55,('LFCR Calc'!C54-'LFCR Calc'!E54-'LFCR Calc'!O54)," ") ->  | D55: =+IF('LFCR Calc'!$G$92>='LFCR Calc'!A55,'LFCR Calc'!$G$85*C55," ") ->  | E55: =+IF('LFCR Calc'!$G$92>='LFCR Calc'!A55, ((100/'LFCR Calc'!$G$92)/100),"") ->  | F55: 0 | G55: =+IF('LFCR Calc'!$G$92>='LFCR Calc'!A55,'LFCR Calc'!$G$94," ") ->  | H55: =+IF('LFCR Calc'!$G$92>='LFCR Calc'!A55,(+D55+E55+F55+G55)," ") ->  | I55: =+IF('LFCR Calc'!$G$92>='LFCR Calc'!A55,(1/((1+'LFCR Calc'!$G$84)^'LFCR Calc'!B55))," ") ->  | J55: =+IF('LFCR Calc'!$G$92>='LFCR Calc'!A55,'LFCR Calc'!H55*'LFCR Calc'!I55," ") ->  | K55: =+IF('LFCR Calc'!$G$92>='LFCR Calc'!A55,'LFCR Calc'!K54+'LFCR Calc'!J55," ") ->  | L55: =+IF('LFCR Calc'!$G$92>='LFCR Calc'!A55,'LFCR Calc'!K55*'LFCR Calc'!$G$84*(1+'LFCR Calc'!$G$84)^'LFCR Calc'!B55/((1+'LFCR Calc'!$G$84)^'LFCR Calc'!B55-1)," ") ->  | N55: =+IF('LFCR Calc'!$G$92>='LFCR Calc'!A55,'Depreciation Table'!E51," ") ->  | O55: =+IF('LFCR Calc'!$G$92>='LFCR Calc'!A55,(('LFCR Calc'!N55-'LFCR Calc'!E55)*('LFCR Calc'!$G$89))," ") ->  | P55: =IF(+'LFCR Calc'!$G$92>='LFCR Calc'!A55,+'LFCR Calc'!O55+P54,"") -> 
A56: 46 | B56: =IF('LFCR Calc'!$G$92>=A56,A56," ") ->  | C56: =+IF('LFCR Calc'!$G$92>='LFCR Calc'!A56,('LFCR Calc'!C55-'LFCR Calc'!E55-'LFCR Calc'!O55)," ") ->  | D56: =+IF('LFCR Calc'!$G$92>='LFCR Calc'!A56,'LFCR Calc'!$G$85*C56," ") ->  | E56: =+IF('LFCR Calc'!$G$92>='LFCR Calc'!A56, ((100/'LFCR Calc'!$G$92)/100),"") ->  | F56: 0 | G56: =+IF('LFCR Calc'!$G$92>='LFCR Calc'!A56,'LFCR Calc'!$G$94," ") ->  | H56: =+IF('LFCR Calc'!$G$92>='LFCR Calc'!A56,(+D56+E56+F56+G56)," ") ->  | I56: =+IF('LFCR Calc'!$G$92>='LFCR Calc'!A56,(1/((1+'LFCR Calc'!$G$84)^'LFCR Calc'!B56))," ") ->  | J56: =+IF('LFCR Calc'!$G$92>='LFCR Calc'!A56,'LFCR Calc'!H56*'LFCR Calc'!I56," ") ->  | K56: =+IF('LFCR Calc'!$G$92>='LFCR Calc'!A56,'LFCR Calc'!K55+'LFCR Calc'!J56," ") ->  | L56: =+IF('LFCR Calc'!$G$92>='LFCR Calc'!A56,'LFCR Calc'!K56*'LFCR Calc'!$G$84*(1+'LFCR Calc'!$G$84)^'LFCR Calc'!B56/((1+'LFCR Calc'!$G$84)^'LFCR Calc'!B56-1)," ") ->  | N56: =+IF('LFCR Calc'!$G$92>='LFCR Calc'!A56,'Depreciation Table'!E52," ") ->  | O56: =+IF('LFCR Calc'!$G$92>='LFCR Calc'!A56,(('LFCR Calc'!N56-'LFCR Calc'!E56)*('LFCR Calc'!$G$89))," ") ->  | P56: =IF(+'LFCR Calc'!$G$92>='LFCR Calc'!A56,+'LFCR Calc'!O56+P55,"") -> 
A57: 47 | B57: =IF('LFCR Calc'!$G$92>=A57,A57," ") ->  | C57: =+IF('LFCR Calc'!$G$92>='LFCR Calc'!A57,('LFCR Calc'!C56-'LFCR Calc'!E56-'LFCR Calc'!O56)," ") ->  | D57: =+IF('LFCR Calc'!$G$92>='LFCR Calc'!A57,'LFCR Calc'!$G$85*C57," ") ->  | E57: =+IF('LFCR Calc'!$G$92>='LFCR Calc'!A57, ((100/'LFCR Calc'!$G$92)/100),"") ->  | F57: 0 | G57: =+IF('LFCR Calc'!$G$92>='LFCR Calc'!A57,'LFCR Calc'!$G$94," ") ->  | H57: =+IF('LFCR Calc'!$G$92>='LFCR Calc'!A57,(+D57+E57+F57+G57)," ") ->  | I57: =+IF('LFCR Calc'!$G$92>='LFCR Calc'!A57,(1/((1+'LFCR Calc'!$G$84)^'LFCR Calc'!B57))," ") ->  | J57: =+IF('LFCR Calc'!$G$92>='LFCR Calc'!A57,'LFCR Calc'!H57*'LFCR Calc'!I57," ") ->  | K57: =+IF('LFCR Calc'!$G$92>='LFCR Calc'!A57,'LFCR Calc'!K56+'LFCR Calc'!J57," ") ->  | L57: =+IF('LFCR Calc'!$G$92>='LFCR Calc'!A57,'LFCR Calc'!K57*'LFCR Calc'!$G$84*(1+'LFCR Calc'!$G$84)^'LFCR Calc'!B57/((1+'LFCR Calc'!$G$84)^'LFCR Calc'!B57-1)," ") ->  | N57: =+IF('LFCR Calc'!$G$92>='LFCR Calc'!A57,'Depreciation Table'!E53," ") ->  | O57: =+IF('LFCR Calc'!$G$92>='LFCR Calc'!A57,(('LFCR Calc'!N57-'LFCR Calc'!E57)*('LFCR Calc'!$G$89))," ") ->  | P57: =IF(+'LFCR Calc'!$G$92>='LFCR Calc'!A57,+'LFCR Calc'!O57+P56,"") -> 
A58: 48 | B58: =IF('LFCR Calc'!$G$92>=A58,A58," ") ->  | C58: =+IF('LFCR Calc'!$G$92>='LFCR Calc'!A58,('LFCR Calc'!C57-'LFCR Calc'!E57-'LFCR Calc'!O57)," ") ->  | D58: =+IF('LFCR Calc'!$G$92>='LFCR Calc'!A58,'LFCR Calc'!$G$85*C58," ") ->  | E58: =+IF('LFCR Calc'!$G$92>='LFCR Calc'!A58, ((100/'LFCR Calc'!$G$92)/100),"") ->  | F58: 0 | G58: =+IF('LFCR Calc'!$G$92>='LFCR Calc'!A58,'LFCR Calc'!$G$94," ") ->  | H58: =+IF('LFCR Calc'!$G$92>='LFCR Calc'!A58,(+D58+E58+F58+G58)," ") ->  | I58: =+IF('LFCR Calc'!$G$92>='LFCR Calc'!A58,(1/((1+'LFCR Calc'!$G$84)^'LFCR Calc'!B58))," ") ->  | J58: =+IF('LFCR Calc'!$G$92>='LFCR Calc'!A58,'LFCR Calc'!H58*'LFCR Calc'!I58," ") ->  | K58: =+IF('LFCR Calc'!$G$92>='LFCR Calc'!A58,'LFCR Calc'!K57+'LFCR Calc'!J58," ") ->  | L58: =+IF('LFCR Calc'!$G$92>='LFCR Calc'!A58,'LFCR Calc'!K58*'LFCR Calc'!$G$84*(1+'LFCR Calc'!$G$84)^'LFCR Calc'!B58/((1+'LFCR Calc'!$G$84)^'LFCR Calc'!B58-1)," ") ->  | N58: =+IF('LFCR Calc'!$G$92>='LFCR Calc'!A58,'Depreciation Table'!E54," ") ->  | O58: =+IF('LFCR Calc'!$G$92>='LFCR Calc'!A58,(('LFCR Calc'!N58-'LFCR Calc'!E58)*('LFCR Calc'!$G$89))," ") ->  | P58: =IF(+'LFCR Calc'!$G$92>='LFCR Calc'!A58,+'LFCR Calc'!O58+P57,"") -> 
A59: 49 | B59: =IF('LFCR Calc'!$G$92>=A59,A59," ") ->  | C59: =+IF('LFCR Calc'!$G$92>='LFCR Calc'!A59,('LFCR Calc'!C58-'LFCR Calc'!E58-'LFCR Calc'!O58)," ") ->  | D59: =+IF('LFCR Calc'!$G$92>='LFCR Calc'!A59,'LFCR Calc'!$G$85*C59," ") ->  | E59: =+IF('LFCR Calc'!$G$92>='LFCR Calc'!A59, ((100/'LFCR Calc'!$G$92)/100),"") ->  | F59: 0 | G59: =+IF('LFCR Calc'!$G$92>='LFCR Calc'!A59,'LFCR Calc'!$G$94," ") ->  | H59: =+IF('LFCR Calc'!$G$92>='LFCR Calc'!A59,(+D59+E59+F59+G59)," ") ->  | I59: =+IF('LFCR Calc'!$G$92>='LFCR Calc'!A59,(1/((1+'LFCR Calc'!$G$84)^'LFCR Calc'!B59))," ") ->  | J59: =+IF('LFCR Calc'!$G$92>='LFCR Calc'!A59,'LFCR Calc'!H59*'LFCR Calc'!I59," ") ->  | K59: =+IF('LFCR Calc'!$G$92>='LFCR Calc'!A59,'LFCR Calc'!K58+'LFCR Calc'!J59," ") ->  | L59: =+IF('LFCR Calc'!$G$92>='LFCR Calc'!A59,'LFCR Calc'!K59*'LFCR Calc'!$G$84*(1+'LFCR Calc'!$G$84)^'LFCR Calc'!B59/((1+'LFCR Calc'!$G$84)^'LFCR Calc'!B59-1)," ") ->  | N59: =+IF('LFCR Calc'!$G$92>='LFCR Calc'!A59,'Depreciation Table'!E55," ") ->  | O59: =+IF('LFCR Calc'!$G$92>='LFCR Calc'!A59,(('LFCR Calc'!N59-'LFCR Calc'!E59)*('LFCR Calc'!$G$89))," ") ->  | P59: =IF(+'LFCR Calc'!$G$92>='LFCR Calc'!A59,+'LFCR Calc'!O59+P58,"") -> 
A60: 50 | B60: =IF('LFCR Calc'!$G$92>=A60,A60," ") ->  | C60: =+IF('LFCR Calc'!$G$92>='LFCR Calc'!A60,('LFCR Calc'!C59-'LFCR Calc'!E59-'LFCR Calc'!O59)," ") ->  | D60: =+IF('LFCR Calc'!$G$92>='LFCR Calc'!A60,'LFCR Calc'!$G$85*C60," ") ->  | E60: =+IF('LFCR Calc'!$G$92>='LFCR Calc'!A60, ((100/'LFCR Calc'!$G$92)/100),"") ->  | F60: 0 | G60: =+IF('LFCR Calc'!$G$92>='LFCR Calc'!A60,'LFCR Calc'!$G$94," ") ->  | H60: =+IF('LFCR Calc'!$G$92>='LFCR Calc'!A60,(+D60+E60+F60+G60)," ") ->  | I60: =+IF('LFCR Calc'!$G$92>='LFCR Calc'!A60,(1/((1+'LFCR Calc'!$G$84)^'LFCR Calc'!B60))," ") ->  | J60: =+IF('LFCR Calc'!$G$92>='LFCR Calc'!A60,'LFCR Calc'!H60*'LFCR Calc'!I60," ") ->  | K60: =+IF('LFCR Calc'!$G$92>='LFCR Calc'!A60,'LFCR Calc'!K59+'LFCR Calc'!J60," ") ->  | L60: =+IF('LFCR Calc'!$G$92>='LFCR Calc'!A60,'LFCR Calc'!K60*'LFCR Calc'!$G$84*(1+'LFCR Calc'!$G$84)^'LFCR Calc'!B60/((1+'LFCR Calc'!$G$84)^'LFCR Calc'!B60-1)," ") ->  | N60: =+IF('LFCR Calc'!$G$92>='LFCR Calc'!A60,'Depreciation Table'!E56," ") ->  | O60: =+IF('LFCR Calc'!$G$92>='LFCR Calc'!A60,(('LFCR Calc'!N60-'LFCR Calc'!E60)*('LFCR Calc'!$G$89))," ") ->  | P60: =IF(+'LFCR Calc'!$G$92>='LFCR Calc'!A60,+'LFCR Calc'!O60+P59,"") -> 
A61: 51 | B61: =IF('LFCR Calc'!$G$92>=A61,A61," ") ->  | C61: =+IF('LFCR Calc'!$G$92>='LFCR Calc'!A61,('LFCR Calc'!C60-'LFCR Calc'!E60-'LFCR Calc'!O60)," ") ->  | D61: =+IF('LFCR Calc'!$G$92>='LFCR Calc'!A61,'LFCR Calc'!$G$85*C61," ") ->  | E61: =+IF('LFCR Calc'!$G$92>='LFCR Calc'!A61, ((100/'LFCR Calc'!$G$92)/100),"") ->  | F61: 0 | G61: =+IF('LFCR Calc'!$G$92>='LFCR Calc'!A61,'LFCR Calc'!$G$94," ") ->  | H61: =+IF('LFCR Calc'!$G$92>='LFCR Calc'!A61,(+D61+E61+F61+G61)," ") ->  | I61: =+IF('LFCR Calc'!$G$92>='LFCR Calc'!A61,(1/((1+'LFCR Calc'!$G$84)^'LFCR Calc'!B61))," ") ->  | J61: =+IF('LFCR Calc'!$G$92>='LFCR Calc'!A61,'LFCR Calc'!H61*'LFCR Calc'!I61," ") ->  | K61: =+IF('LFCR Calc'!$G$92>='LFCR Calc'!A61,'LFCR Calc'!K60+'LFCR Calc'!J61," ") ->  | L61: =+IF('LFCR Calc'!$G$92>='LFCR Calc'!A61,'LFCR Calc'!K61*'LFCR Calc'!$G$84*(1+'LFCR Calc'!$G$84)^'LFCR Calc'!B61/((1+'LFCR Calc'!$G$84)^'LFCR Calc'!B61-1)," ") ->  | N61: =+IF('LFCR Calc'!$G$92>='LFCR Calc'!A61,'Depreciation Table'!E57," ") ->  | O61: =+IF('LFCR Calc'!$G$92>='LFCR Calc'!A61,(('LFCR Calc'!N61-'LFCR Calc'!E61)*('LFCR Calc'!$G$89))," ") ->  | P61: =IF(+'LFCR Calc'!$G$92>='LFCR Calc'!A61,+'LFCR Calc'!O61+P60,"") -> 
A62: 52 | B62: =IF('LFCR Calc'!$G$92>=A62,A62," ") ->  | C62: =+IF('LFCR Calc'!$G$92>='LFCR Calc'!A62,('LFCR Calc'!C61-'LFCR Calc'!E61-'LFCR Calc'!O61)," ") ->  | D62: =+IF('LFCR Calc'!$G$92>='LFCR Calc'!A62,'LFCR Calc'!$G$85*C62," ") ->  | E62: =+IF('LFCR Calc'!$G$92>='LFCR Calc'!A62, ((100/'LFCR Calc'!$G$92)/100),"") ->  | F62: 0 | G62: =+IF('LFCR Calc'!$G$92>='LFCR Calc'!A62,'LFCR Calc'!$G$94," ") ->  | H62: =+IF('LFCR Calc'!$G$92>='LFCR Calc'!A62,(+D62+E62+F62+G62)," ") ->  | I62: =+IF('LFCR Calc'!$G$92>='LFCR Calc'!A62,(1/((1+'LFCR Calc'!$G$84)^'LFCR Calc'!B62))," ") ->  | J62: =+IF('LFCR Calc'!$G$92>='LFCR Calc'!A62,'LFCR Calc'!H62*'LFCR Calc'!I62," ") ->  | K62: =+IF('LFCR Calc'!$G$92>='LFCR Calc'!A62,'LFCR Calc'!K61+'LFCR Calc'!J62," ") ->  | L62: =+IF('LFCR Calc'!$G$92>='LFCR Calc'!A62,'LFCR Calc'!K62*'LFCR Calc'!$G$84*(1+'LFCR Calc'!$G$84)^'LFCR Calc'!B62/((1+'LFCR Calc'!$G$84)^'LFCR Calc'!B62-1)," ") ->  | N62: =+IF('LFCR Calc'!$G$92>='LFCR Calc'!A62,'Depreciation Table'!E58," ") ->  | O62: =+IF('LFCR Calc'!$G$92>='LFCR Calc'!A62,(('LFCR Calc'!N62-'LFCR Calc'!E62)*('LFCR Calc'!$G$89))," ") ->  | P62: =IF(+'LFCR Calc'!$G$92>='LFCR Calc'!A62,+'LFCR Calc'!O62+P61,"") -> 
A63: 53 | B63: =IF('LFCR Calc'!$G$92>=A63,A63," ") ->  | C63: =+IF('LFCR Calc'!$G$92>='LFCR Calc'!A63,('LFCR Calc'!C62-'LFCR Calc'!E62-'LFCR Calc'!O62)," ") ->  | D63: =+IF('LFCR Calc'!$G$92>='LFCR Calc'!A63,'LFCR Calc'!$G$85*C63," ") ->  | E63: =+IF('LFCR Calc'!$G$92>='LFCR Calc'!A63, ((100/'LFCR Calc'!$G$92)/100),"") ->  | F63: 0 | G63: =+IF('LFCR Calc'!$G$92>='LFCR Calc'!A63,'LFCR Calc'!$G$94," ") ->  | H63: =+IF('LFCR Calc'!$G$92>='LFCR Calc'!A63,(+D63+E63+F63+G63)," ") ->  | I63: =+IF('LFCR Calc'!$G$92>='LFCR Calc'!A63,(1/((1+'LFCR Calc'!$G$84)^'LFCR Calc'!B63))," ") ->  | J63: =+IF('LFCR Calc'!$G$92>='LFCR Calc'!A63,'LFCR Calc'!H63*'LFCR Calc'!I63," ") ->  | K63: =+IF('LFCR Calc'!$G$92>='LFCR Calc'!A63,'LFCR Calc'!K62+'LFCR Calc'!J63," ") ->  | L63: =+IF('LFCR Calc'!$G$92>='LFCR Calc'!A63,'LFCR Calc'!K63*'LFCR Calc'!$G$84*(1+'LFCR Calc'!$G$84)^'LFCR Calc'!B63/((1+'LFCR Calc'!$G$84)^'LFCR Calc'!B63-1)," ") ->  | N63: =+IF('LFCR Calc'!$G$92>='LFCR Calc'!A63,'Depreciation Table'!E59," ") ->  | O63: =+IF('LFCR Calc'!$G$92>='LFCR Calc'!A63,(('LFCR Calc'!N63-'LFCR Calc'!E63)*('LFCR Calc'!$G$89))," ") ->  | P63: =IF(+'LFCR Calc'!$G$92>='LFCR Calc'!A63,+'LFCR Calc'!O63+P62,"") -> 
A64: 54 | B64: =IF('LFCR Calc'!$G$92>=A64,A64," ") ->  | C64: =+IF('LFCR Calc'!$G$92>='LFCR Calc'!A64,('LFCR Calc'!C63-'LFCR Calc'!E63-'LFCR Calc'!O63)," ") ->  | D64: =+IF('LFCR Calc'!$G$92>='LFCR Calc'!A64,'LFCR Calc'!$G$85*C64," ") ->  | E64: =+IF('LFCR Calc'!$G$92>='LFCR Calc'!A64, ((100/'LFCR Calc'!$G$92)/100),"") ->  | F64: 0 | G64: =+IF('LFCR Calc'!$G$92>='LFCR Calc'!A64,'LFCR Calc'!$G$94," ") ->  | H64: =+IF('LFCR Calc'!$G$92>='LFCR Calc'!A64,(+D64+E64+F64+G64)," ") ->  | I64: =+IF('LFCR Calc'!$G$92>='LFCR Calc'!A64,(1/((1+'LFCR Calc'!$G$84)^'LFCR Calc'!B64))," ") ->  | J64: =+IF('LFCR Calc'!$G$92>='LFCR Calc'!A64,'LFCR Calc'!H64*'LFCR Calc'!I64," ") ->  | K64: =+IF('LFCR Calc'!$G$92>='LFCR Calc'!A64,'LFCR Calc'!K63+'LFCR Calc'!J64," ") ->  | L64: =+IF('LFCR Calc'!$G$92>='LFCR Calc'!A64,'LFCR Calc'!K64*'LFCR Calc'!$G$84*(1+'LFCR Calc'!$G$84)^'LFCR Calc'!B64/((1+'LFCR Calc'!$G$84)^'LFCR Calc'!B64-1)," ") ->  | N64: =+IF('LFCR Calc'!$G$92>='LFCR Calc'!A64,'Depreciation Table'!E60," ") ->  | O64: =+IF('LFCR Calc'!$G$92>='LFCR Calc'!A64,(('LFCR Calc'!N64-'LFCR Calc'!E64)*('LFCR Calc'!$G$89))," ") ->  | P64: =IF(+'LFCR Calc'!$G$92>='LFCR Calc'!A64,+'LFCR Calc'!O64+P63,"") -> 
A65: 55 | B65: =IF('LFCR Calc'!$G$92>=A65,A65," ") ->  | C65: =+IF('LFCR Calc'!$G$92>='LFCR Calc'!A65,('LFCR Calc'!C64-'LFCR Calc'!E64-'LFCR Calc'!O64)," ") ->  | D65: =+IF('LFCR Calc'!$G$92>='LFCR Calc'!A65,'LFCR Calc'!$G$85*C65," ") ->  | E65: =+IF('LFCR Calc'!$G$92>='LFCR Calc'!A65, ((100/'LFCR Calc'!$G$92)/100),"") ->  | F65: 0 | G65: =+IF('LFCR Calc'!$G$92>='LFCR Calc'!A65,'LFCR Calc'!$G$94," ") ->  | H65: =+IF('LFCR Calc'!$G$92>='LFCR Calc'!A65,(+D65+E65+F65+G65)," ") ->  | I65: =+IF('LFCR Calc'!$G$92>='LFCR Calc'!A65,(1/((1+'LFCR Calc'!$G$84)^'LFCR Calc'!B65))," ") ->  | J65: =+IF('LFCR Calc'!$G$92>='LFCR Calc'!A65,'LFCR Calc'!H65*'LFCR Calc'!I65," ") ->  | K65: =+IF('LFCR Calc'!$G$92>='LFCR Calc'!A65,'LFCR Calc'!K64+'LFCR Calc'!J65," ") ->  | L65: =+IF('LFCR Calc'!$G$92>='LFCR Calc'!A65,'LFCR Calc'!K65*'LFCR Calc'!$G$84*(1+'LFCR Calc'!$G$84)^'LFCR Calc'!B65/((1+'LFCR Calc'!$G$84)^'LFCR Calc'!B65-1)," ") ->  | N65: =+IF('LFCR Calc'!$G$92>='LFCR Calc'!A65,'Depreciation Table'!E61," ") ->  | O65: =+IF('LFCR Calc'!$G$92>='LFCR Calc'!A65,(('LFCR Calc'!N65-'LFCR Calc'!E65)*('LFCR Calc'!$G$89))," ") ->  | P65: =IF(+'LFCR Calc'!$G$92>='LFCR Calc'!A65,+'LFCR Calc'!O65+P64,"") -> 
A69: (1) Prior year's Net investment - Book Depreciation - Deferred Income Tax.
A70: (2) Return (adjusted for taxes) x Net Investment.
A71: (3) Depreciation rate based on the life of the investment.
A72: (4) Distribution O&M expense as percent of distribution plant.
A73: (5) Ad valorem tax rate on distribution plant.
A74: (6) Sum of return, depreciation, O&M and ad valorem taxes.
A75: (7) Present value factor reflecting overall rate of return.
A76: (8) Present value factor x total charge.
A77: (9) Accumulated present value.
A78: (10) Levelized fixed charge rate = accumulated present value x ((+ROR*(1+ROR)˄book life)/((1+ROR)˄book life-1)
A79: (11) Tax depreciation rates for a CT uses a 15 year tax life.
A80: (12) (Tax life - book life) x tax rate.
A83: Assumptions
A84: ROR | G84: =+'Cap Structure'!G14 -> 0.07216
A85: ROR with taxes | G85: =+'Cap Structure'!I14 -> 0.09713
A87: Federal Tax Rate | G87: 0.35
A88: State Tax Rate
A89: Combined Federal/State Tax Rate | G89: =+ROUND((G88*0.65)+G87,6) -> 0.35
A90: 1 - Tax Rate | G90: =+ROUND(1-G89,6) -> 0.65
A92: Service Life of Asset (in years) | G92: 40
A93: Tax Life (in years - 5, 7, 10, 15, 20 , or 39) | G93: 15
A94: Property Tax Rate | G94: 0.00363

Sheet Cap Structure
A1: Montana-Dakota Utilities co.
A2: Electric Utility - South Dakota
A3: =+'LFCR Calc'!A3 -> 2018 Avoided Cost Rate Update
A4: Authorized Capital Structure
G7: Required | I7: Adjusted for
C8: Ratio | E8: Cost | G8: Return | I8: Taxes
A10: Long Term Debt | C10: 0.41135 | E10: 0.05949 | G10: =ROUND(+E10*C10,5) -> 0.02447 | I10: =+G10 -> 0.02447
A11: Short Term Debt | C11: 0.08108 | E11: 0.01631 | G11: =ROUND(+E11*C11,5) -> 0.00132 | I11: =+G11 -> 0.00132
A12: Preferred Stock | C12: 0.01242 | E12: 0.04579 | G12: =ROUND(+E12*C12,5) -> 0.00057 | I12: =ROUND(+G12/'LFCR Calc'!$G$90,5) -> 0.00088
A13: Common Equity | C13: 0.49515 | E13: 0.0925 | G13: =ROUND(+E13*C13,5) -> 0.0458 | I13: =ROUND(+G13/'LFCR Calc'!$G$90,5) -> 0.07046
A14: Total | C14: =SUM(C10:C13) -> 1 | G14: =SUM(G10:G13) -> 0.07216 | I14: =SUM(I10:I13) -> 0.09713

Sheet Depreciation Table
A1: MACRS Depreciation table
A2: Depreciation Method: 200 or 150 Percent Declining Balance Switching to Straight Line
A3: Convention: Half-Year
B5: Tax Life (Years)
B6: 5 | C6: 7 | D6: 10 | E6: 15 | F6: 20 | G6: 39
A7: 1 | B7: 0.2 | C7: 0.1429 | D7: 0.1 | E7: 0.05 | F7: 0.0375 | G7: 0.01284
A8: 2 | B8: 0.32 | C8: 0.2449 | D8: 0.18 | E8: 0.095 | F8: 0.07219 | G8: 0.02564
A9: 3 | B9: 0.192 | C9: 0.1749 | D9: 0.144 | E9: 0.0855 | F9: 0.06677 | G9: 0.02564
A10: 4 | B10: 0.1152 | C10: 0.1249 | D10: 0.1152 | E10: 0.077 | F10: 0.06177 | G10: 0.02564
A11: 5 | B11: 0.1152 | C11: 0.0893 | D11: 0.0922 | E11: 0.0693 | F11: 0.05713 | G11: 0.02564
A12: 6 | B12: 0.0576 | C12: 0.0892 | D12: 0.0737 | E12: 0.0623 | F12: 0.05285 | G12: 0.02564
A13: 7 | B13: 0 | C13: 0.0893 | D13: 0.0655 | E13: 0.059 | F13: 0.04888 | G13: 0.02564 | J13: 0.07429390004 | K13: TOTAL(I8) =COMPO-(TAXPCT*DEBT)
A14: 8 | B14: 0 | C14: 0.0446 | D14: 0.0655 | E14: 0.059 | F14: 0.04522 | G14: 0.02564
A15: 9 | B15: 0 | C15: 0 | D15: 0.0656 | E15: 0.0591 | F15: 0.04462 | G15: 0.02564
A16: 10 | B16: 0 | C16: 0 | D16: 0.0655 | E16: 0.059 | F16: 0.04461 | G16: 0.02564
A17: 11 | B17: 0 | C17: 0 | D17: 0.0328 | E17: 0.0591 | F17: 0.04462 | G17: 0.02564
A18: 12 | B18: 0 | C18: 0 | D18: 0 | E18: 0.059 | F18: 0.04461 | G18: 0.02564
A19: 13 | B19: 0 | C19: 0 | D19: 0 | E19: 0.0591 | F19: 0.04462 | G19: 0.02564
A20: 14 | B20: 0 | C20: 0 | D20: 0 | E20: 0.059 | F20: 0.04461 | G20: 0.02564
A21: 15 | B21: 0 | C21: 0 | D21: 0 | E21: 0.0591 | F21: 0.04462 | G21: 0.02564
A22: 16 | B22: 0 | C22: 0 | D22: 0 | E22: 0.0295 | F22: 0.04461 | G22: 0.02564
A23: 17 | B23: 0 | C23: 0 | D23: 0 | E23: 0 | F23: 0.04462 | G23: 0.02564
A24: 18 | B24: 0 | C24: 0 | D24: 0 | E24: 0 | F24: 0.04461 | G24: 0.02564
A25: 19 | B25: 0 | C25: 0 | D25: 0 | E25: 0 | F25: 0.04462 | G25: 0.02564
A26: 20 | B26: 0 | C26: 0 | D26: 0 | E26: 0 | F26: 0.04461 | G26: 0.02564
A27: 21 | B27: 0 | C27: 0 | D27: 0 | E27: 0 | F27: 0.02231 | G27: 0.02564
A28: 22 | B28: 0 | C28: 0 | D28: 0 | E28: 0 | F28: 0 | G28: 0.02564
A29: 23 | B29: 0 | C29: 0 | D29: 0 | E29: 0 | F29: 0 | G29: 0.02564
A30: 24 | B30: 0 | C30: 0 | D30: 0 | E30: 0 | F30: 0 | G30: 0.02564
A31: 25 | B31: 0 | C31: 0 | D31: 0 | E31: 0 | F31: 0 | G31: 0.02564
A32: 26 | B32: 0 | C32: 0 | D32: 0 | E32: 0 | F32: 0 | G32: 0.02564
A33: 27 | B33: 0 | C33: 0 | D33: 0 | E33: 0 | F33: 0 | G33: 0.02564
A34: 28 | B34: 0 | C34: 0 | D34: 0 | E34: 0 | F34: 0 | G34: 0.02564
A35: 29 | B35: 0 | C35: 0 | D35: 0 | E35: 0 | F35: 0 | G35: 0.02564
A36: 30 | B36: 0 | C36: 0 | D36: 0 | E36: 0 | F36: 0 | G36: 0.02564
A37: 31 | B37: 0 | C37: 0 | D37: 0 | E37: 0 | F37: 0 | G37: 0.02564
A38: 32 | B38: 0 | C38: 0 | D38: 0 | E38: 0 | F38: 0 | G38: 0.02564
A39: 33 | B39: 0 | C39: 0 | D39: 0 | E39: 0 | F39: 0 | G39: 0.02564
A40: 34 | B40: 0 | C40: 0 | D40: 0 | E40: 0 | F40: 0 | G40: 0.02564
A41: 35 | B41: 0 | C41: 0 | D41: 0 | E41: 0 | F41: 0 | G41: 0.02564
A42: 36 | B42: 0 | C42: 0 | D42: 0 | E42: 0 | F42: 0 | G42: 0.02564
A43: 37 | B43: 0 | C43: 0 | D43: 0 | E43: 0 | F43: 0 | G43: 0.02564
A44: 38 | B44: 0 | C44: 0 | D44: 0 | E44: 0 | F44: 0 | G44: 0.02564
A45: 39 | B45: 0 | C45: 0 | D45: 0 | E45: 0 | F45: 0 | G45: 0.02564
A46: 40 | B46: 0 | C46: 0 | D46: 0 | E46: 0 | F46: 0 | G46: 0.01284
